Workbook

Sheet note
B23: Salaries
B24: Salaries - hourly and annual
B25: Salaries sorted by position
B26: Salary Positions (total) by Library
B27: Salary Summary (statewide) by Position

Sheet salaries
A1: 2b. City/Town File # | B1: 8. City | C1: 1. Library ID | D1: Location | E1: 160. Job Category | F1: 161. Number of Staff | G1: 162. Official Title(s) at Library | H1: 163. Hourly Rate | I1: 163a. Annual Salary | J1: 164. Hours Worked per Week | K1: 165. MLS? | L1: MLS Total | M1: MLS Hours
A2: 1 | B2: BARRINGTON | C2: BAR | D2: BARRINGTON PUBLIC LIBRARY | E2: 16 | F2: 34 | G2: 16 | H2: $11.76 | I2: $53,108 | J2: 30.7 | K2: =SUM(L3:L18) -> 6 | L2: =SUM(M3:M18) -> 210
A3: 1 | B3: BARRINGTON | C3: BAR | D3: BARRINGTON PUBLIC LIBRARY | E3: Director | F3: 1 | G3: Library Director | I3: $86,976 | J3: 35 | K3: Yes | L3: =IF(K3="yes",F3,0) -> 1 | M3: =IF(K3="YES",J3,0) -> 35
A4: 1 | B4: BARRINGTON | C4: BAR | D4: BARRINGTON PUBLIC LIBRARY | E4: Deputy/Associate/Assistant Director | F4: 1 | G4: assistant director/head of children\'s dept | I4: $69,206 | J4: 35 | K4: Yes | L4: =IF(K4="yes",F4,0) -> 1 | M4: =IF(K4="YES",J4,0) -> 35
A5: 1 | B5: BARRINGTON | C5: BAR | D5: BARRINGTON PUBLIC LIBRARY | E5: Manager/Department Head | F5: 1 | G5: head of technical services | I5: $65,299 | J5: 35 | K5: Yes | L5: 1 | M5: 35
A6: 1 | B6: BARRINGTON | C6: BAR | D6: BARRINGTON PUBLIC LIBRARY | E6: Manager/Department Head | F6: 1 | G6: head of reference | I6: $62,920 | J6: 35 | K6: Yes | L6: 1 | M6: 35
A7: 1 | B7: BARRINGTON | C7: BAR | D7: BARRINGTON PUBLIC LIBRARY | E7: Childrens and/or Young Adult Services Librarian | F7: 1 | G7: YA librarian | I7: $51,500 | J7: 35 | K7: Yes | L7: 1 | M7: 35
A8: 1 | B8: BARRINGTON | C8: BAR | D8: BARRINGTON PUBLIC LIBRARY | E8: Manager/Department Head | F8: 1 | G8: community services librarian | I8: $51,500 | J8: 35 | K8: Yes | L8: 1 | M8: 35
A9: 1 | B9: BARRINGTON | C9: BAR | D9: BARRINGTON PUBLIC LIBRARY | E9: Library Associate | F9: 1 | G9: Administrative assistant II | I9: $48,653 | J9: 35 | K9: No | L9: 0 | M9: 0
A10: 1 | B10: BARRINGTON | C10: BAR | D10: BARRINGTON PUBLIC LIBRARY | E10: Library Associate | F10: 3 | G10: Library assistant I | I10: $48,653 | J10: 35 | K10: No | L10: 0 | M10: 0
A11: 1 | B11: BARRINGTON | C11: BAR | D11: BARRINGTON PUBLIC LIBRARY | E11: Library Associate | F11: 1 | G11: Library assistant I | I11: $43,790 | J11: 35 | K11: No | L11: 0 | M11: 0
A12: 1 | B12: BARRINGTON | C12: BAR | D12: BARRINGTON PUBLIC LIBRARY | E12: Library Technician | F12: 1 | G12: Library assistant II | I12: $35,921 | J12: 35 | K12: No | L12: 0 | M12: 0
A13: 1 | B13: BARRINGTON | C13: BAR | D13: BARRINGTON PUBLIC LIBRARY | E13: Library Technician | F13: 1 | G13: Library assistant II | I13: $34,358 | J13: 35 | K13: No | L13: 0 | M13: 0
A14: 1 | B14: BARRINGTON | C14: BAR | D14: BARRINGTON PUBLIC LIBRARY | E14: Manager/Department Head | F14: 1 | G14: Technology Coordinator | I14: $50,175 | J14: 35 | K14: No | L14: 0 | M14: 0
A15: 1 | B15: BARRINGTON | C15: BAR | D15: BARRINGTON PUBLIC LIBRARY | E15: Buildings/Ground Staff | F15: 1 | G15: head custodian | I15: $41,449 | J15: 35 | K15: No | L15: 0 | M15: 0
A16: 1 | B16: BARRINGTON | C16: BAR | D16: BARRINGTON PUBLIC LIBRARY | E16: Library Associate | F16: 10 | G16: Library assistant | H16: $16.19 | J16: 15 | K16: No | L16: 0 | M16: 0
A17: 1 | B17: BARRINGTON | C17: BAR | D17: BARRINGTON PUBLIC LIBRARY | E17: Buildings/Ground Staff | F17: 3 | G17: custodians | H17: $10.82 | J17: 12 | K17: No | L17: 0 | M17: 0
A18: 1 | B18: BARRINGTON | C18: BAR | D18: BARRINGTON PUBLIC LIBRARY | E18: Aide/Page | F18: 6 | G18: pages | H18: $8.26 | J18: 9 | K18: No | L18: 0 | M18: 0
A19: 2 | B19: BRISTOL | C19: BRI | D19: ROGERS FREE LIBRARY | E19: 9 | F19: 23 | G19: 9 | H19: $11.87 | I19: $41,700 | J19: 31.0 | K19: =SUM(L20:L28) -> 4 | L19: =SUM(M20:M28) -> 105
A20: 2 | B20: BRISTOL | C20: BRI | D20: ROGERS FREE LIBRARY | E20: Director | F20: 1 | G20: Director | H20: $0.00 | I20: $63,550 | J20: 35 | K20: Yes | L20: 1 | M20: 35
A21: 2 | B21: BRISTOL | C21: BRI | D21: ROGERS FREE LIBRARY | E21: Deputy/Associate/Assistant Director | F21: 1 | G21: Asst. Director | H21: $0.00 | I21: $44,000 | J21: 35 | K21: No | L21: 0 | M21: 0
A22: 2 | B22: BRISTOL | C22: BRI | D22: ROGERS FREE LIBRARY | E22: Childrens and/or Young Adult Services Librarian | F22: 1 | G22: Youth services librarian | H22: $0.00 | I22: $42,000 | J22: 35 | K22: Yes | L22: 1 | M22: 35
A23: 2 | B23: BRISTOL | C23: BRI | D23: ROGERS FREE LIBRARY | E23: Reference/Information Librarian | F23: 2 | G23: Ref/info/outreach librarian | H23: $0.00 | I23: $42,000 | J23: 35 | K23: Yes | L23: 2 | M23: 35
A24: 2 | B24: BRISTOL | C24: BRI | D24: ROGERS FREE LIBRARY | E24: Library Associate | F24: 1 | G24: Liby assoc/technology | H24: $0.00 | I24: $37,000 | J24: 35 | K24: No | L24: 0 | M24: 0
A25: 2 | B25: BRISTOL | C25: BRI | D25: ROGERS FREE LIBRARY | E25: Library Associate | F25: 1 | G25: Circulation supervisor | H25: $0.00 | I25: $32,000 | J25: 35 | K25: No | L25: 0 | M25: 0
A26: 2 | B26: BRISTOL | C26: BRI | D26: ROGERS FREE LIBRARY | E26: Library Associate | F26: 13 | G26: Circ associates | H26: $15.04 | I26: $0 | J26: 24 | K26: No | L26: 0 | M26: 0
A27: 2 | B27: BRISTOL | C27: BRI | D27: ROGERS FREE LIBRARY | E27: Aide/Page | F27: 2 | G27: Page | H27: $8.69 | I27: $0 | J27: 10 | K27: No | L27: 0 | M27: 0
A28: 2 | B28: BRISTOL | C28: BRI | D28: ROGERS FREE LIBRARY | E28: Buildings/Ground Staff | F28: 1 | G28: Custodian | H28: $0.00 | I28: $31,349 | J28: 35 | K28: No | L28: 0 | M28: 0
A29: 3 | B29: BURRILLVILLE | C29: BUR | D29: JESSE M. SMITH MEMORIAL LIBRARY | E29: 18 | F29: 19 | G29: 18 | H29: $17.65 | I29: $0 | J29: 25.5 | K29: =SUM(L30:L47) -> 4 | L29: =SUM(M30:M47) -> 124
A30: 3 | B30: BURRILLVILLE | C30: BUR | D30: JESSE M. SMITH MEMORIAL LIBRARY | E30: Buildings/Ground Staff | F30: 1 | G30: Building and Grounds Supervisor | H30: $19.69 | J30: 40 | K30: No | L30: 0 | M30: 0
A31: 3 | B31: BURRILLVILLE | C31: BUR | D31: JESSE M. SMITH MEMORIAL LIBRARY | E31: Aide/Page | F31: 2 | G31: Page | H31: $9.00 | J31: 14 | K31: No | L31: 0 | M31: 0
A32: 3 | B32: BURRILLVILLE | C32: BUR | D32: JESSE M. SMITH MEMORIAL LIBRARY | E32: Childrens and/or Young Adult Services Librarian | F32: 1 | G32: Head Children\'s Librarian | H32: $22.52 | J32: 35 | K32: Yes | L32: 1 | M32: 35
A33: 3 | B33: BURRILLVILLE | C33: BUR | D33: JESSE M. SMITH MEMORIAL LIBRARY | E33: Childrens and/or Young Adult Services Librarian | F33: 1 | G33: Children\'s Librarian | H33: $19.42 | J33: 19 | K33: Yes | L33: 1 | M33: 19
A34: 3 | B34: BURRILLVILLE | C34: BUR | D34: JESSE M. SMITH MEMORIAL LIBRARY | E34: Director | F34: 1 | G34: Director | H34: $31.87 | J34: 35 | K34: Yes | L34: 1 | M34: 35
A35: 3 | B35: BURRILLVILLE | C35: BUR | D35: JESSE M. SMITH MEMORIAL LIBRARY | E35: Deputy/Associate/Assistant Director | F35: 1 | G35: Assistant Director | H35: $26.43 | J35: 35 | K35: Yes | L35: 1 | M35: 35
A36: 3 | B36: BURRILLVILLE | C36: BUR | D36: JESSE M. SMITH MEMORIAL LIBRARY | E36: Library Associate | F36: 1 | G36: Children\'s Paraprofessional | H36: $13.99 | J36: 18 | K36: No | L36: 0 | M36: 0
A37: 3 | B37: BURRILLVILLE | C37: BUR | D37: JESSE M. SMITH MEMORIAL LIBRARY | E37: Library Associate | F37: 1 | G37: Children\'s Paraprofessional | H37: $15.17 | J37: 18 | K37: No | L37: 0 | M37: 0
A38: 3 | B38: BURRILLVILLE | C38: BUR | D38: JESSE M. SMITH MEMORIAL LIBRARY | E38: Library Associate | F38: 1 | G38: Reference Paraprofessioanl | H38: $13.99 | J38: 19.5 | K38: No | L38: 0 | M38: 0
A39: 3 | B39: BURRILLVILLE | C39: BUR | D39: JESSE M. SMITH MEMORIAL LIBRARY | E39: Technical Services Librarian | F39: 1 | G39: Head of Circulation | H39: $21.78 | J39: 35 | K39: No | L39: 0 | M39: 0
A40: 3 | B40: BURRILLVILLE | C40: BUR | D40: JESSE M. SMITH MEMORIAL LIBRARY | E40: Reference/Information Librarian | F40: 1 | G40: Reference Specialist | H40: $21.78 | J40: 35 | K40: No | L40: 0 | M40: 0
A41: 3 | B41: BURRILLVILLE | C41: BUR | D41: JESSE M. SMITH MEMORIAL LIBRARY | E41: Library Technician | F41: 1 | G41: Library Assistant (Circulation II) | H41: $11.42 | J41: 14.5 | K41: No | L41: 0 | M41: 0
A42: 3 | B42: BURRILLVILLE | C42: BUR | D42: JESSE M. SMITH MEMORIAL LIBRARY | E42: Library Technician | F42: 1 | G42: Library Assistant (Circulation II) | H42: $12.68 | J42: 18 | K42: No | L42: 0 | M42: 0
A43: 3 | B43: BURRILLVILLE | C43: BUR | D43: JESSE M. SMITH MEMORIAL LIBRARY | E43: Library Technician | F43: 1 | G43: Library Assistant (Circulation II) | H43: $12.00 | J43: 14 | K43: No | L43: 0 | M43: 0
A44: 3 | B44: BURRILLVILLE | C44: BUR | D44: JESSE M. SMITH MEMORIAL LIBRARY | E44: Library Associate | F44: 1 | G44: Library Assistant (Circulation III) | H44: $13.46 | J44: 19.5 | K44: No | L44: 0 | M44: 0
A45: 3 | B45: BURRILLVILLE | C45: BUR | D45: JESSE M. SMITH MEMORIAL LIBRARY | E45: Library Technician | F45: 1 | G45: Library Assistant (Circulation III)/Admin. Assistant | H45: $16.62 | J45: 35 | K45: No | L45: 0 | M45: 0
A46: 3 | B46: BURRILLVILLE | C46: BUR | D46: JESSE M. SMITH MEMORIAL LIBRARY | E46: Library Technician | F46: 1 | G46: Library Assistant (Circulation III) | H46: $14.80 | J46: 35 | K46: No | L46: 0 | M46: 0
A47: 3 | B47: BURRILLVILLE | C47: BUR | D47: JESSE M. SMITH MEMORIAL LIBRARY | E47: Office Staff | F47: 1 | G47: Technology Specialist/Admin. Assistant | H47: $21.12 | J47: 19.5 | K47: No | L47: 0 | M47: 0
A48: 3 | B48: PASCOAG | C48: PAS | D48: PASCOAG FREE PUBLIC LIBRARY | E48: 8 | F48: 8 | G48: 8 | H48: $11.71 | I48: $8,559 | J48: 12.4 | K48: =SUM(L49:L56) -> 1 | L48: =SUM(M49:M56) -> 26
A49: 3 | B49: PASCOAG | C49: PAS | D49: PASCOAG FREE PUBLIC LIBRARY | E49: Director | F49: 1 | G49: Director | H49: $15.06 | I49: $20,361 | J49: 26 | K49: Yes | L49: 1 | M49: 26
A50: 3 | B50: PASCOAG | C50: PAS | D50: PASCOAG FREE PUBLIC LIBRARY | E50: Deputy/Associate/Assistant Director | F50: 1 | G50: Library Manager | H50: $15.06 | I50: $20,361 | J50: 26 | K50: No | L50: 0 | M50: 0
A51: 3 | B51: PASCOAG | C51: PAS | D51: PASCOAG FREE PUBLIC LIBRARY | E51: Library Associate | F51: 1 | G51: Cataloger | H51: $10.50 | I51: $7,644 | J51: 14 | K51: No | L51: 0 | M51: 0
A52: 3 | B52: PASCOAG | C52: PAS | D52: PASCOAG FREE PUBLIC LIBRARY | E52: Technical Services Librarian | F52: 1 | G52: Library Technician | H52: $10.24 | I52: $6,502 | J52: 11 | K52: No | L52: 0 | M52: 0
A53: 3 | B53: PASCOAG | C53: PAS | D53: PASCOAG FREE PUBLIC LIBRARY | E53: Library Associate | F53: 1 | G53: Library Assistant | H53: $9.18 | I53: $5,728 | J53: 12 | K53: No | L53: 0 | M53: 0
A54: 3 | B54: PASCOAG | C54: PAS | D54: PASCOAG FREE PUBLIC LIBRARY | E54: Library Associate | F54: 1 | G54: Library Assistant | H54: $10.24 | I54: $2,520 | J54: 3 | K54: No | L54: 0 | M54: 0
A55: 3 | B55: PASCOAG | C55: PAS | D55: PASCOAG FREE PUBLIC LIBRARY | E55: Office Staff | F55: 1 | G55: Bookkeeper | I55: $2,520 | J55: 3 | K55: No | L55: 0 | M55: 0
A56: 3 | B56: PASCOAG | C56: PAS | D56: PASCOAG FREE PUBLIC LIBRARY | E56: Buildings/Ground Staff | F56: 1 | G56: Janitor | I56: $2,832 | J56: 4 | K56: No | L56: 0 | M56: 0
A57: 4 | B57: CENTRAL FALLS | C57: CFA | D57: CENTRAL FALLS FREE PUBLIC LIBRARY | E57: 3 | F57: 3 | G57: 3 | H57: $9.00 | I57: $50,000 | J57: 29.0 | K57: =SUM(L58:L60) -> 1 | L57: =SUM(M58:M60) -> 40
A58: 4 | B58: CENTRAL FALLS | C58: CFA | D58: CENTRAL FALLS FREE PUBLIC LIBRARY | E58: Director | F58: 1 | G58: Acting Director | I58: $50,000 | J58: 40 | K58: Yes | L58: 1 | M58: 40
A59: 4 | B59: CENTRAL FALLS | C59: CFA | D59: CENTRAL FALLS FREE PUBLIC LIBRARY | E59: Manager/Department Head | F59: 1 | G59: Head of Circulation | H59: $9.00 | J59: 22 | K59: No | L59: 0 | M59: 0
A60: 4 | B60: CENTRAL FALLS | C60: CFA | D60: CENTRAL FALLS FREE PUBLIC LIBRARY | E60: Library Technician | F60: 1 | G60: Library Aide | H60: $9.00 | J60: 25 | K60: No | L60: 0 | M60: 0
A61: 5 | B61: CHARLESTOWN | C61: CHA | D61: CROSS' MILLS PUBLIC LIBRARY | E61: 13 | F61: 13 | G61: 13 | H61: $13.97 | I61: $54,064 | J61: 16.4 | K61: =SUM(L62:L74) -> 4 | L61: =SUM(M62:M74) -> 111.5
A62: 5 | B62: CHARLESTOWN | C62: CHA | D62: CROSS' MILLS PUBLIC LIBRARY | E62: Director | F62: 1 | G62: Director | I62: $66,308 | J62: 40 | K62: Yes | L62: 1 | M62: 40
A63: 5 | B63: CHARLESTOWN | C63: CHA | D63: CROSS' MILLS PUBLIC LIBRARY | E63: Deputy/Associate/Assistant Director | F63: 1 | G63: Assistant Director | I63: $41,820 | J63: 35 | K63: Yes | L63: 1 | M63: 35
A64: 5 | B64: CHARLESTOWN | C64: CHA | D64: CROSS' MILLS PUBLIC LIBRARY | E64: Library Associate | F64: 1 | G64: Public Relations & Programming | H64: $14.00 | J64: 28 | K64: Yes | L64: 1 | M64: 28
A65: 5 | B65: CHARLESTOWN | C65: CHA | D65: CROSS' MILLS PUBLIC LIBRARY | E65: Technical Services Librarian | F65: 1 | G65: Technical Librarian | H65: $20.51 | J65: 8.5 | K65: Yes | L65: 1 | M65: 8.5
A66: 5 | B66: CHARLESTOWN | C66: CHA | D66: CROSS' MILLS PUBLIC LIBRARY | E66: Library Associate | F66: 1 | G66: Circulation Clerk | H66: $12.00 | J66: 13 | K66: No | L66: 0 | M66: 0
A67: 5 | B67: CHARLESTOWN | C67: CHA | D67: CROSS' MILLS PUBLIC LIBRARY | E67: Library Associate | F67: 1 | G67: Circulation Clerk | H67: $12.00 | J67: 17.5 | K67: No | L67: 0 | M67: 0
A68: 5 | B68: CHARLESTOWN | C68: CHA | D68: CROSS' MILLS PUBLIC LIBRARY | E68: Library Associate | F68: 1 | G68: Circulation Clerk | H68: $12.35 | J68: 8 | K68: No | L68: =IF(K68="yes",F68,0) -> 0 | M68: =IF(K68="YES",J68,0) -> 0
A69: 5 | B69: CHARLESTOWN | C69: CHA | D69: CROSS' MILLS PUBLIC LIBRARY | E69: Manager/Department Head | F69: 1 | G69: Musical Programming | H69: $17.58 | J69: 10 | K69: No | L69: 0 | M69: 0
A70: 5 | B70: CHARLESTOWN | C70: CHA | D70: CROSS' MILLS PUBLIC LIBRARY | E70: Library Associate | F70: 1 | G70: Circulation Clerk | H70: $11.00 | J70: 20 | K70: No | L70: 0 | M70: 0
A71: 5 | B71: CHARLESTOWN | C71: CHA | D71: CROSS' MILLS PUBLIC LIBRARY | E71: Aide/Page | F71: 1 | G71: Shelver | H71: $10.00 | J71: 11 | K71: No | L71: 0 | M71: 0
A72: 5 | B72: CHARLESTOWN | C72: CHA | D72: CROSS' MILLS PUBLIC LIBRARY | E72: Buildings/Ground Staff | F72: 1 | G72: Maintenance | H72: $15.59 | J72: 12 | K72: No | L72: 0 | M72: 0
A73: 5 | B73: CHARLESTOWN | C73: CHA | D73: CROSS' MILLS PUBLIC LIBRARY | E73: Buildings/Ground Staff | F73: 1 | G73: Custodian | H73: $20.18 | J73: 4 | K73: No | L73: 0 | M73: 0
A74: 5 | B74: CHARLESTOWN | C74: CHA | D74: CROSS' MILLS PUBLIC LIBRARY | E74: Aide/Page | F74: 1 | G74: Shelver | H74: $8.50 | J74: 6 | K74: No | L74: 0 | M74: 0
A75: 6 | B75: COVENTRY | C75: COV | D75: COVENTRY PUBLIC LIBRARY | E75: 16 | F75: 31 | G75: 16 | H75: $15.08 | I75: $44,517 | J75: 24.3 | K75: =SUM(L76:L91) -> 13 | L75: =SUM(M76:M91) -> 228
A76: 6 | B76: COVENTRY | C76: COV | D76: COVENTRY PUBLIC LIBRARY | E76: Director | F76: 1 | G76: Library Director | I76: $71,951 | J76: 35 | K76: Yes | L76: 1 | M76: 35
A77: 6 | B77: COVENTRY | C77: COV | D77: COVENTRY PUBLIC LIBRARY | E77: Deputy/Associate/Assistant Director | F77: 1 | G77: Assistant Director | I77: $58,756 | J77: 35 | K77: Yes | L77: 1 | M77: 35
A78: 6 | B78: COVENTRY | C78: COV | D78: COVENTRY PUBLIC LIBRARY | E78: Manager/Department Head | F78: 1 | G78: Adult Services | I78: $49,299 | J78: 35 | K78: Yes | L78: 1 | M78: 35
A79: 6 | B79: COVENTRY | C79: COV | D79: COVENTRY PUBLIC LIBRARY | E79: Manager/Department Head | F79: 1 | G79: Youth Services | I79: $59,368 | J79: 35 | K79: Yes | L79: 1 | M79: 35
A80: 6 | B80: COVENTRY | C80: COV | D80: COVENTRY PUBLIC LIBRARY | E80: Manager/Department Head | F80: 1 | G80: Technical Services | I80: $54,384 | J80: 35 | K80: Yes | L80: 1 | M80: 35
A81: 6 | B81: COVENTRY | C81: COV | D81: COVENTRY PUBLIC LIBRARY | E81: Manager/Department Head | F81: 1 | G81: Circulation Manager | I81: $46,103 | J81: 35 | K81: No | L81: 0 | M81: 0
A82: 6 | B82: COVENTRY | C82: COV | D82: COVENTRY PUBLIC LIBRARY | E82: Buildings/Ground Staff | F82: 1 | G82: Building Maintenance | I82: $20,901 | J82: 20 | K82: No | L82: 0 | M82: 0
A83: 6 | B83: COVENTRY | C83: COV | D83: COVENTRY PUBLIC LIBRARY | E83: Buildings/Ground Staff | F83: 1 | G83: Custodian | I83: $17,913 | J83: 20 | K83: No | L83: 0 | M83: 0
A84: 6 | B84: COVENTRY | C84: COV | D84: COVENTRY PUBLIC LIBRARY | E84: Library Technician | F84: 1 | G84: Technology Coordinator | I84: $21,974 | J84: 17.5 | K84: No | L84: 0 | M84: 0
A85: 6 | B85: COVENTRY | C85: COV | D85: COVENTRY PUBLIC LIBRARY | E85: Reference/Information Librarian | F85: 5 | G85: Part-time Reference Librarians | H85: $19.26 | J85: 15 | K85: Yes | L85: 5 | M85: 15
A86: 6 | B86: COVENTRY | C86: COV | D86: COVENTRY PUBLIC LIBRARY | E86: Branch Librarian | F86: 1 | G86: Part-time Branch Librarian | H86: $18.03 | J86: 18 | K86: Yes | L86: 1 | M86: 18
A87: 6 | B87: COVENTRY | C87: COV | D87: COVENTRY PUBLIC LIBRARY | E87: Childrens and/or Young Adult Services Librarian | F87: 2 | G87: Part-time Youth Services Librarians | H87: $19.52 | J87: 20 | K87: Yes | L87: 2 | M87: 20
A88: 6 | B88: COVENTRY | C88: COV | D88: COVENTRY PUBLIC LIBRARY | E88: Library Technician | F88: 10 | G88: Part-time Circulation/Youth Services Assistants | H88: $13.35 | J88: 19 | K88: No | L88: 0 | M88: 0
A89: 6 | B89: COVENTRY | C89: COV | D89: COVENTRY PUBLIC LIBRARY | E89: Library Technician | F89: 1 | G89: Technical Assistant | H89: $11.91 | J89: 19 | K89: No | L89: 0 | M89: 0
A90: 6 | B90: COVENTRY | C90: COV | D90: COVENTRY PUBLIC LIBRARY | E90: Aide/Page | F90: 2 | G90: Library Aides | H90: $11.76 | J90: 15 | K90: No | L90: 0 | M90: 0
A91: 6 | B91: COVENTRY | C91: COV | D91: COVENTRY PUBLIC LIBRARY | E91: Library Technician | F91: 1 | G91: Homebound Coordinator | H91: $11.76 | J91: 15 | K91: No | L91: 0 | M91: 0
A92: 7 | B92: CRANSTON | C92: CRA | D92: CRANSTON PUBLIC LIBRARY | E92: 64 | F92: 93 | G92: 64 | H92: $11.05 | I92: $50,767 | J92: 21.1 | K92: =SUM(L93:L156) -> 24 | L92: =SUM(M93:M156) -> 590.5
A93: 7 | B93: CRANSTON | C93: CRA | D93: CRANSTON PUBLIC LIBRARY | E93: Director | F93: 1 | G93: Library Director | I93: $89,900 | J93: 35 | K93: Yes | L93: 1 | M93: 35
A94: 7 | B94: CRANSTON | C94: CRA | D94: CRANSTON PUBLIC LIBRARY | E94: Deputy/Associate/Assistant Director | F94: 1 | G94: Assistant Library Director | I94: $69,000 | J94: 35 | K94: Yes | L94: 1 | M94: 35
A95: 7 | B95: CRANSTON | C95: CRA | D95: CRANSTON PUBLIC LIBRARY | E95: Manager/Department Head | F95: 1 | G95: Coordinator of Adult Services | I95: $74,916 | J95: 35 | K95: Yes | L95: 1 | M95: 35
A96: 7 | B96: CRANSTON | C96: CRA | D96: CRANSTON PUBLIC LIBRARY | E96: Manager/Department Head | F96: 1 | G96: Coordinator of youth Services | I96: $62,266 | J96: 35 | K96: Yes | L96: 1 | M96: 35
A97: 7 | B97: CRANSTON | C97: CRA | D97: CRANSTON PUBLIC LIBRARY | E97: Manager/Department Head | F97: 1 | G97: Coordinator of Technical Services | I97: $64,923 | J97: 35 | K97: Yes | L97: 1 | M97: 35
A98: 7 | B98: CRANSTON | C98: CRA | D98: CRANSTON PUBLIC LIBRARY | E98: Branch Librarian | F98: 1 | G98: Branch Librarian | I98: $65,582 | J98: 35 | K98: Yes | L98: 1 | M98: 35
A99: 7 | B99: CRANSTON | C99: CRA | D99: CRANSTON PUBLIC LIBRARY | E99: Childrens and/or Young Adult Services Librarian | F99: 1 | G99: Head of Teen Services | I99: $65,582 | J99: 35 | K99: Yes | L99: 1 | M99: 35
A100: 7 | B100: CRANSTON | C100: CRA | D100: CRANSTON PUBLIC LIBRARY | E100: Childrens and/or Young Adult Services Librarian | F100: 2 | G100: Youth Services Librarian | I100: $55,728 | J100: 35 | K100: Yes | L100: 2 | M100: 35
A101: 7 | B101: CRANSTON | C101: CRA | D101: CRANSTON PUBLIC LIBRARY | E101: Childrens and/or Young Adult Services Librarian | F101: 2 | G101: Youth Services Librarian | I101: $43,184 | J101: 35 | K101: Yes | L101: 2 | M101: 35
A102: 7 | B102: CRANSTON | C102: CRA | D102: CRANSTON PUBLIC LIBRARY | E102: Reference/Information Librarian | F102: 1 | G102: Information Services Librarian | I102: $54,714 | J102: 35 | K102: Yes | L102: 1 | M102: 35
A103: 7 | B103: CRANSTON | C103: CRA | D103: CRANSTON PUBLIC LIBRARY | E103: Reference/Information Librarian | F103: 1 | G103: Information Services Librarian | I103: $43,184 | J103: 35 | K103: Yes | L103: 1 | M103: 35
A104: 7 | B104: CRANSTON | C104: CRA | D104: CRANSTON PUBLIC LIBRARY | E104: Reference/Information Librarian | F104: 1 | G104: Information Services Librarian | I104: $55,223 | J104: 35 | K104: Yes | L104: 1 | M104: 35
A105: 7 | B105: CRANSTON | C105: CRA | D105: CRANSTON PUBLIC LIBRARY | E105: Branch Librarian | F105: 1 | G105: Branch Librarian | I105: $53,689 | J105: 35 | K105: Yes | L105: 1 | M105: 35
A106: 7 | B106: CRANSTON | C106: CRA | D106: CRANSTON PUBLIC LIBRARY | E106: Branch Librarian | F106: 1 | G106: Branch Librarian | I106: $59,691 | J106: 35 | K106: Yes | L106: 1 | M106: 35
A107: 7 | B107: CRANSTON | C107: CRA | D107: CRANSTON PUBLIC LIBRARY | E107: Branch Librarian | F107: 1 | G107: Branch Librarian | I107: $55,728 | J107: 35 | K107: Yes | L107: 1 | M107: 35
A108: 7 | B108: CRANSTON | C108: CRA | D108: CRANSTON PUBLIC LIBRARY | E108: Manager/Department Head | F108: 1 | G108: Head of Circulation | I108: $44,078 | J108: 35 | K108: No | L108: 0 | M108: 0
A109: 7 | B109: CRANSTON | C109: CRA | D109: CRANSTON PUBLIC LIBRARY | E109: Manager/Department Head | F109: 1 | G109: Office Manager | I109: $44,078 | J109: 35 | K109: No | L109: 0 | M109: 0
A110: 7 | B110: CRANSTON | C110: CRA | D110: CRANSTON PUBLIC LIBRARY | E110: Buildings/Ground Staff | F110: 1 | G110: Custodian | I110: $38,178 | J110: 35 | K110: No | L110: 0 | M110: 0
A111: 7 | B111: CRANSTON | C111: CRA | D111: CRANSTON PUBLIC LIBRARY | E111: Library Associate | F111: 3 | G111: Library Assistant II | I111: $37,308 | J111: 35 | K111: No | L111: 0 | M111: 0
A112: 7 | B112: CRANSTON | C112: CRA | D112: CRANSTON PUBLIC LIBRARY | E112: Library Associate | F112: 4 | G112: Library Assistant II | I112: $37,993 | J112: 35 | K112: No | L112: 0 | M112: 0
A113: 7 | B113: CRANSTON | C113: CRA | D113: CRANSTON PUBLIC LIBRARY | E113: Library Associate | F113: 1 | G113: Library Assistant II | I113: $37,652 | J113: 35 | K113: No | L113: 0 | M113: 0
A114: 7 | B114: CRANSTON | C114: CRA | D114: CRANSTON PUBLIC LIBRARY | E114: Office Staff | F114: 1 | G114: Administrative Assistant | I114: $37,652 | J114: 35 | K114: No | L114: 0 | M114: 0
A115: 7 | B115: CRANSTON | C115: CRA | D115: CRANSTON PUBLIC LIBRARY | E115: Library Associate | F115: 1 | G115: Library Assistant II | I115: $28,783 | J115: 35 | K115: No | L115: 0 | M115: 0
A116: 7 | B116: CRANSTON | C116: CRA | D116: CRANSTON PUBLIC LIBRARY | E116: Buildings/Ground Staff | F116: 1 | G116: Driver | I116: $20,374 | J116: 25 | K116: No | L116: 0 | M116: 0
A117: 7 | B117: CRANSTON | C117: CRA | D117: CRANSTON PUBLIC LIBRARY | E117: Office Staff | F117: 1 | G117: Community Engagment Mgr | I117: $29,767 | J117: 35 | K117: No | L117: 0 | M117: 0
A118: 7 | B118: CRANSTON | C118: CRA | D118: CRANSTON PUBLIC LIBRARY | E118: Library Technician | F118: 4 | G118: Library Aide | H118: $9.00 | J118: 3 | K118: No | L118: 0 | M118: 0
A119: 7 | B119: CRANSTON | C119: CRA | D119: CRANSTON PUBLIC LIBRARY | E119: Library Technician | F119: 2 | G119: Library Aide | H119: $9.00 | J119: 5 | K119: No | L119: 0 | M119: 0
A120: 7 | B120: CRANSTON | C120: CRA | D120: CRANSTON PUBLIC LIBRARY | E120: Library Technician | F120: 4 | G120: Library Aide | H120: $9.00 | J120: 12 | K120: No | L120: 0 | M120: 0
A121: 7 | B121: CRANSTON | C121: CRA | D121: CRANSTON PUBLIC LIBRARY | E121: Library Technician | F121: 2 | G121: Library Aide | H121: $9.00 | J121: 16 | K121: No | L121: 0 | M121: 0
A122: 7 | B122: CRANSTON | C122: CRA | D122: CRANSTON PUBLIC LIBRARY | E122: Library Technician | F122: 3 | G122: Library Aide | H122: $9.00 | J122: 4 | K122: No | L122: 0 | M122: 0
A123: 7 | B123: CRANSTON | C123: CRA | D123: CRANSTON PUBLIC LIBRARY | E123: Library Technician | F123: 2 | G123: Library Aide | H123: $9.00 | J123: 8 | K123: No | L123: 0 | M123: 0
A124: 7 | B124: CRANSTON | C124: CRA | D124: CRANSTON PUBLIC LIBRARY | E124: Library Technician | F124: 2 | G124: Library Aide | H124: $9.00 | J124: 18 | K124: No | L124: 0 | M124: 0
A125: 7 | B125: CRANSTON | C125: CRA | D125: CRANSTON PUBLIC LIBRARY | E125: Library Technician | F125: 2 | G125: Library Aide | H125: $9.00 | J125: 20 | K125: No | L125: 0 | M125: 0
A126: 7 | B126: CRANSTON | C126: CRA | D126: CRANSTON PUBLIC LIBRARY | E126: Library Technician | F126: 3 | G126: Library Aide | H126: $9.00 | J126: 15 | K126: No | L126: 0 | M126: 0
A127: 7 | B127: CRANSTON | C127: CRA | D127: CRANSTON PUBLIC LIBRARY | E127: Library Technician | F127: 2 | G127: Library Aide | H127: $9.00 | J127: 21 | K127: No | L127: 0 | M127: 0
A128: 7 | B128: CRANSTON | C128: CRA | D128: CRANSTON PUBLIC LIBRARY | E128: Buildings/Ground Staff | F128: 1 | G128: Custodian | H128: $10.00 | J128: 14 | K128: No | L128: 0 | M128: 0
A129: 7 | B129: CRANSTON | C129: CRA | D129: CRANSTON PUBLIC LIBRARY | E129: Buildings/Ground Staff | F129: 2 | G129: Custodian | H129: $10.00 | J129: 25 | K129: No | L129: 0 | M129: 0
A130: 7 | B130: CRANSTON | C130: CRA | D130: CRANSTON PUBLIC LIBRARY | E130: Buildings/Ground Staff | F130: 1 | G130: Security | H130: $9.00 | J130: 12 | K130: No | L130: 0 | M130: 0
A131: 7 | B131: CRANSTON | C131: CRA | D131: CRANSTON PUBLIC LIBRARY | E131: Reference/Information Librarian | F131: 1 | G131: Librarian | H131: $17.50 | J131: 6 | K131: Yes | L131: 1 | M131: 6
A132: 7 | B132: CRANSTON | C132: CRA | D132: CRANSTON PUBLIC LIBRARY | E132: Reference/Information Librarian | F132: 1 | G132: Librarian | H132: $16.50 | J132: 30 | K132: Yes | L132: =IF(K132="yes",F132,0) -> 1 | M132: =IF(K132="YES",J132,0) -> 30
A133: 7 | B133: CRANSTON | C133: CRA | D133: CRANSTON PUBLIC LIBRARY | E133: Childrens and/or Young Adult Services Librarian | F133: 1 | G133: Librarian | H133: $16.50 | J133: 3.5 | K133: Yes | L133: 1 | M133: 3.5
A134: 7 | B134: CRANSTON | C134: CRA | D134: CRANSTON PUBLIC LIBRARY | E134: Childrens and/or Young Adult Services Librarian | F134: 1 | G134: Librarian | H134: $16.50 | J134: 20 | K134: Yes | L134: 1 | M134: 20
A135: 7 | B135: CRANSTON | C135: CRA | D135: CRANSTON PUBLIC LIBRARY | E135: Reference/Information Librarian | F135: 3 | G135: Librarian | H135: $16.50 | J135: 6 | K135: Yes | L135: 3 | M135: 6
A136: 7 | B136: CRANSTON | C136: CRA | D136: CRANSTON PUBLIC LIBRARY | E136: Library Associate | F136: 2 | G136: Library Assistant | H136: $9.00 | J136: 7 | K136: No | L136: 0 | M136: 0
A137: 7 | B137: CRANSTON | C137: CRA | D137: CRANSTON PUBLIC LIBRARY | E137: Library Associate | F137: 1 | G137: Library Assistant | H137: $10.25 | J137: 7 | K137: No | L137: 0 | M137: 0
A138: 7 | B138: CRANSTON | C138: CRA | D138: CRANSTON PUBLIC LIBRARY | E138: Library Associate | F138: 1 | G138: Library Assistant | H138: $10.25 | J138: 23 | K138: No | L138: 0 | M138: 0
A139: 7 | B139: CRANSTON | C139: CRA | D139: CRANSTON PUBLIC LIBRARY | E139: Library Associate | F139: 1 | G139: Library Assistant | H139: $10.25 | J139: 4 | K139: No | L139: 0 | M139: 0
A140: 7 | B140: CRANSTON | C140: CRA | D140: CRANSTON PUBLIC LIBRARY | E140: Library Associate | F140: 1 | G140: Library Assistant | H140: $10.25 | J140: 12 | K140: No | L140: 0 | M140: 0
A141: 7 | B141: CRANSTON | C141: CRA | D141: CRANSTON PUBLIC LIBRARY | E141: Buildings/Ground Staff | F141: 1 | G141: Custodian | H141: $9.35 | J141: 9 | K141: No | L141: 0 | M141: 0
A142: 7 | B142: CRANSTON | C142: CRA | D142: CRANSTON PUBLIC LIBRARY | E142: Buildings/Ground Staff | F142: 1 | G142: Custodian | H142: $12.35 | J142: 20 | K142: No | L142: 0 | M142: 0
A143: 7 | B143: CRANSTON | C143: CRA | D143: CRANSTON PUBLIC LIBRARY | E143: Library Technician | F143: 1 | G143: Library Aide | H143: $9.75 | J143: 25 | K143: No | L143: 0 | M143: 0
A144: 7 | B144: CRANSTON | C144: CRA | D144: CRANSTON PUBLIC LIBRARY | E144: Library Technician | F144: 1 | G144: Library Aide | H144: $11.55 | J144: 18 | K144: No | L144: 0 | M144: 0
A145: 7 | B145: CRANSTON | C145: CRA | D145: CRANSTON PUBLIC LIBRARY | E145: Library Associate | F145: 1 | G145: Library Assistant | H145: $12.05 | J145: 20 | K145: No | L145: 0 | M145: 0
A146: 7 | B146: CRANSTON | C146: CRA | D146: CRANSTON PUBLIC LIBRARY | E146: Library Associate | F146: 1 | G146: Library Assistant | H146: $11.10 | J146: 10 | K146: No | L146: 0 | M146: 0
A147: 7 | B147: CRANSTON | C147: CRA | D147: CRANSTON PUBLIC LIBRARY | E147: Library Associate | F147: 1 | G147: Library Assistant | H147: $11.10 | J147: 18 | K147: No | L147: 0 | M147: 0
A148: 7 | B148: CRANSTON | C148: CRA | D148: CRANSTON PUBLIC LIBRARY | E148: Library Associate | F148: 1 | G148: Library Assistant | H148: $13.60 | J148: 3 | K148: No | L148: 0 | M148: 0
A149: 7 | B149: CRANSTON | C149: CRA | D149: CRANSTON PUBLIC LIBRARY | E149: Library Associate | F149: 1 | G149: Library Assistant | H149: $12.30 | J149: 6 | K149: No | L149: 0 | M149: 0
A150: 7 | B150: CRANSTON | C150: CRA | D150: CRANSTON PUBLIC LIBRARY | E150: Library Associate | F150: 1 | G150: Library Assistant | H150: $12.30 | J150: 20 | K150: No | L150: 0 | M150: 0
A151: 7 | B151: CRANSTON | C151: CRA | D151: CRANSTON PUBLIC LIBRARY | E151: Aide/Page | F151: 3 | G151: Page | H151: $9.00 | J151: 8 | K151: No | L151: 0 | M151: 0
A152: 7 | B152: CRANSTON | C152: CRA | D152: CRANSTON PUBLIC LIBRARY | E152: Aide/Page | F152: 1 | G152: Page | H152: $9.00 | J152: 20 | K152: No | L152: 0 | M152: 0
A153: 7 | B153: CRANSTON | C153: CRA | D153: CRANSTON PUBLIC LIBRARY | E153: Buildings/Ground Staff | F153: 1 | G153: Security | H153: $10.10 | J153: 3 | K153: No | L153: 0 | M153: 0
A154: 7 | B154: CRANSTON | C154: CRA | D154: CRANSTON PUBLIC LIBRARY | E154: Buildings/Ground Staff | F154: 1 | G154: Security | H154: $9.35 | J154: 5 | K154: No | L154: 0 | M154: 0
A155: 7 | B155: CRANSTON | C155: CRA | D155: CRANSTON PUBLIC LIBRARY | E155: Office Staff | F155: 1 | G155: Secretary to Board | H155: $13.30 | J155: 1.5 | K155: No | L155: 0 | M155: 0
A156: 7 | B156: CRANSTON | C156: CRA | D156: CRANSTON PUBLIC LIBRARY | E156: Library Associate | F156: 1 | G156: Library Assistant | H156: $12.30 | J156: 7 | K156: No | L156: 0 | M156: 0
A157: 8 | B157: CUMBERLAND | C157: CUM | D157: CUMBERLAND PUBLIC LIBRARY | E157: 29 | F157: 35 | G157: 29 | H157: $16.38 | I157: $56,625 | J157: 23.4 | K157: =SUM(L158:L186) -> 8 | L157: =SUM(M158:M186) -> 257.5
A158: 8 | B158: CUMBERLAND | C158: CUM | D158: CUMBERLAND PUBLIC LIBRARY | E158: Director | F158: 1 | G158: Library Director | I158: $76,407 | J158: 35 | K158: Yes | L158: 1 | M158: 35
A159: 8 | B159: CUMBERLAND | C159: CUM | D159: CUMBERLAND PUBLIC LIBRARY | E159: Deputy/Associate/Assistant Director | F159: 1 | G159: Assistant Director/Technology Coordinator | I159: $60,658 | J159: 35 | K159: Yes | L159: 1 | M159: 35
A160: 8 | B160: CUMBERLAND | C160: CUM | D160: CUMBERLAND PUBLIC LIBRARY | E160: Manager/Department Head | F160: 1 | G160: Reference Services Coordinator | I160: $52,866 | J160: 35 | K160: Yes | L160: 1 | M160: 35
A161: 8 | B161: CUMBERLAND | C161: CUM | D161: CUMBERLAND PUBLIC LIBRARY | E161: Manager/Department Head | F161: 1 | G161: Adult Services Coordinator | I161: $53,395 | J161: 35 | K161: Yes | L161: 1 | M161: 35
A162: 8 | B162: CUMBERLAND | C162: CUM | D162: CUMBERLAND PUBLIC LIBRARY | E162: Manager/Department Head | F162: 1 | G162: Children\'s Services Coordinator | I162: $51,709 | J162: 35 | K162: Yes | L162: 1 | M162: 35
A163: 8 | B163: CUMBERLAND | C163: CUM | D163: CUMBERLAND PUBLIC LIBRARY | E163: Manager/Department Head | F163: 1 | G163: Technical Services/Homebound Librarian | I163: $51,709 | J163: 35 | K163: Yes | L163: 1 | M163: 35
A164: 8 | B164: CUMBERLAND | C164: CUM | D164: CUMBERLAND PUBLIC LIBRARY | E164: Childrens and/or Young Adult Services Librarian | F164: 1 | G164: Young Adult Reference Librarian | I164: $49,631 | J164: 35 | K164: Yes | L164: 1 | M164: 35
A165: 8 | B165: CUMBERLAND | C165: CUM | D165: CUMBERLAND PUBLIC LIBRARY | E165: Childrens and/or Young Adult Services Librarian | F165: 1 | G165: Part-time Children\'s Librarian | H165: $24.73 | J165: 12.5 | K165: Yes | L165: 1 | M165: 12.5
A166: 8 | B166: CUMBERLAND | C166: CUM | D166: CUMBERLAND PUBLIC LIBRARY | E166: Manager/Department Head | F166: 1 | G166: Circulation Supervisor | H166: $21.02 | J166: 35 | K166: No | L166: 0 | M166: 0
A167: 8 | B167: CUMBERLAND | C167: CUM | D167: CUMBERLAND PUBLIC LIBRARY | E167: Office Staff | F167: 1 | G167: Administrative Assistant | H167: $21.82 | J167: 35 | K167: No | L167: 0 | M167: 0
A168: 8 | B168: CUMBERLAND | C168: CUM | D168: CUMBERLAND PUBLIC LIBRARY | E168: Office Staff | F168: 1 | G168: Bookkeeper | H168: $17.21 | J168: 4 | K168: No | L168: 0 | M168: 0
A169: 8 | B169: CUMBERLAND | C169: CUM | D169: CUMBERLAND PUBLIC LIBRARY | E169: Library Associate | F169: 1 | G169: Full-time Children\'s Assistant | H169: $18.01 | J169: 35 | K169: No | L169: 0 | M169: 0
A170: 8 | B170: CUMBERLAND | C170: CUM | D170: CUMBERLAND PUBLIC LIBRARY | E170: Library Associate | F170: 1 | G170: Part-time Children\'s Assistant | H170: $16.28 | J170: 19.5 | K170: No | L170: 0 | M170: 0
A171: 8 | B171: CUMBERLAND | C171: CUM | D171: CUMBERLAND PUBLIC LIBRARY | E171: Library Associate | F171: 1 | G171: Part-time Children\'s Assistant | H171: $15.58 | J171: 19.5 | K171: No | L171: 0 | M171: 0
A172: 8 | B172: CUMBERLAND | C172: CUM | D172: CUMBERLAND PUBLIC LIBRARY | E172: Library Associate | F172: 2 | G172: Part-time Reference Assistant | H172: $15.58 | J172: 19.5 | K172: No | L172: 0 | M172: 0
A173: 8 | B173: CUMBERLAND | C173: CUM | D173: CUMBERLAND PUBLIC LIBRARY | E173: Library Associate | F173: 1 | G173: Information Services Specialist | H173: $15.58 | J173: 19.5 | K173: No | L173: 0 | M173: 0
A174: 8 | B174: CUMBERLAND | C174: CUM | D174: CUMBERLAND PUBLIC LIBRARY | E174: Library Associate | F174: 1 | G174: Part-time Reference Assistant | H174: $15.58 | J174: 6 | K174: No | L174: 0 | M174: 0
A175: 8 | B175: CUMBERLAND | C175: CUM | D175: CUMBERLAND PUBLIC LIBRARY | E175: Library Associate | F175: 2 | G175: Part-time Desk Assistant | H175: $15.42 | J175: 19.5 | K175: No | L175: 0 | M175: 0
A176: 8 | B176: CUMBERLAND | C176: CUM | D176: CUMBERLAND PUBLIC LIBRARY | E176: Library Associate | F176: 1 | G176: Part-time Desk Assistant | H176: $15.27 | J176: 19.5 | K176: No | L176: 0 | M176: 0
A177: 8 | B177: CUMBERLAND | C177: CUM | D177: CUMBERLAND PUBLIC LIBRARY | E177: Library Associate | F177: 2 | G177: Part-time Desk Assistant | H177: $14.52 | J177: 19.5 | K177: No | L177: 0 | M177: 0
A178: 8 | B178: CUMBERLAND | C178: CUM | D178: CUMBERLAND PUBLIC LIBRARY | E178: Library Associate | F178: 2 | G178: Part-time Desk Assistant | H178: $14.52 | J178: 16.5 | K178: No | L178: 0 | M178: 0
A179: 8 | B179: CUMBERLAND | C179: CUM | D179: CUMBERLAND PUBLIC LIBRARY | E179: Library Technician | F179: 1 | G179: Part-time Catalog Assistant | H179: $15.27 | J179: 19.5 | K179: No | L179: 0 | M179: 0
A180: 8 | B180: CUMBERLAND | C180: CUM | D180: CUMBERLAND PUBLIC LIBRARY | E180: Library Technician | F180: 1 | G180: Part-time Catalog Assistant | H180: $14.52 | J180: 19.5 | K180: No | L180: 0 | M180: 0
A181: 8 | B181: CUMBERLAND | C181: CUM | D181: CUMBERLAND PUBLIC LIBRARY | E181: Aide/Page | F181: 1 | G181: Part-time Library Page | H181: $10.51 | J181: 15 | K181: No | L181: 0 | M181: 0
A182: 8 | B182: CUMBERLAND | C182: CUM | D182: CUMBERLAND PUBLIC LIBRARY | E182: Aide/Page | F182: 3 | G182: Part-time Library Page | H182: $9.54 | J182: 15 | K182: No | L182: 0 | M182: 0
A183: 8 | B183: CUMBERLAND | C183: CUM | D183: CUMBERLAND PUBLIC LIBRARY | E183: Buildings/Ground Staff | F183: 1 | G183: Facility Manager | H183: $20.43 | J183: 40 | K183: No | L183: 0 | M183: 0
A184: 8 | B184: CUMBERLAND | C184: CUM | D184: CUMBERLAND PUBLIC LIBRARY | E184: Buildings/Ground Staff | F184: 1 | G184: Part-time Custodian | H184: $16.91 | J184: 18 | K184: No | L184: 0 | M184: 0
A185: 8 | B185: CUMBERLAND | C185: CUM | D185: CUMBERLAND PUBLIC LIBRARY | E185: Buildings/Ground Staff | F185: 1 | G185: Part-time Custodial Assistant | H185: $16.25 | J185: 19.5 | K185: No | L185: 0 | M185: 0
A186: 8 | B186: CUMBERLAND | C186: CUM | D186: CUMBERLAND PUBLIC LIBRARY | E186: Buildings/Ground Staff | F186: 1 | G186: Part-time Custodial Assistant | H186: $15.70 | J186: 8 | K186: No | L186: 0 | M186: 0
A187: 9 | B187: EAST GREENWICH | C187: EGR | D187: EAST GREENWICH FREE LIBRARY | E187: 16 | F187: 17 | G187: 15 | H187: $20.73 | I187: $0 | J187: 22.8 | K187: =SUM(L188:L202) -> 6 | L187: =SUM(M188:M202) -> 153
A188: 9 | B188: EAST GREENWICH | C188: EGR | D188: EAST GREENWICH FREE LIBRARY | E188: Director | F188: 1 | G188: Director | H188: $41.43 | J188: 35 | K188: Yes | L188: 1 | M188: 35
A189: 9 | B189: EAST GREENWICH | C189: EGR | D189: EAST GREENWICH FREE LIBRARY | E189: Manager/Department Head | F189: 1 | G189: Head of Refernce and Information Services | H189: $29.82 | J189: 35 | K189: Yes | L189: 1 | M189: 35
A190: 9 | B190: EAST GREENWICH | C190: EGR | D190: EAST GREENWICH FREE LIBRARY | E190: Manager/Department Head | F190: 1 | G190: Head of Children\'s Services | H190: $28.40 | J190: 35 | K190: Yes | L190: 1 | M190: 35
A191: 9 | B191: EAST GREENWICH | C191: EGR | D191: EAST GREENWICH FREE LIBRARY | E191: Manager/Department Head | F191: 1 | G191: Head of Cirulation | H191: $20.22 | J191: 35 | K191: No | L191: 0 | M191: 0
A192: 9 | B192: EAST GREENWICH | C192: EGR | D192: EAST GREENWICH FREE LIBRARY | E192: Library Associate | F192: 1 | G192: Circulation clerk | H192: $20.22 | J192: 15 | K192: No | L192: 0 | M192: 0
A193: 9 | B193: EAST GREENWICH | C193: EGR | D193: EAST GREENWICH FREE LIBRARY | E193: Childrens and/or Young Adult Services Librarian | F193: 1 | G193: childrens librarian | H193: $21.50 | J193: 16 | K193: Yes | L193: 1 | M193: 16
A194: 9 | B194: EAST GREENWICH | C194: EGR | D194: EAST GREENWICH FREE LIBRARY | E194: Childrens and/or Young Adult Services Librarian | F194: 1 | G194: children\'s librarian | H194: $18.07 | J194: 10 | K194: No | L194: 0 | M194: 0
A195: 9 | B195: EAST GREENWICH | C195: EGR | D195: EAST GREENWICH FREE LIBRARY | E195: Reference/Information Librarian | F195: 1 | G195: Reference librarian | H195: $20.50 | J195: 12 | K195: Yes | L195: 1 | M195: 12
A196: 9 | B196: EAST GREENWICH | C196: EGR | D196: EAST GREENWICH FREE LIBRARY | E196: Reference/Information Librarian | F196: 1 | G196: Reference librarian | H196: $19.53 | J196: 20 | K196: Yes | L196: =IF(K196="yes",F196,0) -> 1 | M196: =IF(K196="YES",J196,0) -> 20
A197: 9 | B197: EAST GREENWICH | C197: EGR | D197: EAST GREENWICH FREE LIBRARY | E197: Library Associate | F197: 3 | G197: circulation clerk | H197: $11.62 | J197: 56 | K197: No | L197: 0 | M197: 0
A198: 9 | B198: EAST GREENWICH | C198: EGR | D198: EAST GREENWICH FREE LIBRARY | E198: Office Staff | F198: 1 | G198: administrative assistant | H198: $17.86 | J198: 24 | K198: No | L198: 0 | M198: 0
A199: 9 | B199: EAST GREENWICH | C199: EGR | D199: EAST GREENWICH FREE LIBRARY | E199: Technical Services Librarian | F199: 1 | G199: technical services | H199: $12.29 | J199: 9 | K199: No | L199: 0 | M199: 0
A200: 9 | B200: EAST GREENWICH | C200: EGR | D200: EAST GREENWICH FREE LIBRARY | E200: Aide/Page | F200: 1 | G200: page | H200: $9.09 | J200: 20 | K200: No | L200: 0 | M200: 0
... 592 more rows

Sheet salariesHourly
A1: 2b. City/Town File # | B1: 8. City | C1: 1. Library ID | D1: Location | E1: 160. Job Category | F1: 161. Number of Staff | G1: 162. Official Title(s) at Library | H1: 163. Hourly Rate | I1: Calculated? | J1: 163a. Annual Salary | K1: 164. Hours Worked per Week | L1: 165. MLS?
A2: 1 | B2: BARRINGTON | C2: BAR | D2: BARRINGTON PUBLIC LIBRARY | E2: Director | F2: 1 | G2: Library Director | H2: =IF(J2>0,(J2/(K2*52))," ") -> $47.79 | I2: =IF(J2>0,"Y"," N") -> Y | J2: $86,976 | K2: 35 | L2: Yes
A3: 1 | B3: BARRINGTON | C3: BAR | D3: BARRINGTON PUBLIC LIBRARY | E3: Deputy/Associate/Assistant Director | F3: 1 | G3: assistant director/head of children\'s dept | H3: =IF(J3>0,(J3/(K3*52))," ") -> $38.03 | I3: =IF(J3>0,"Y"," N") -> Y | J3: $69,206 | K3: 35 | L3: Yes
A4: 1 | B4: BARRINGTON | C4: BAR | D4: BARRINGTON PUBLIC LIBRARY | E4: Manager/Department Head | F4: 1 | G4: head of technical services | H4: $35.88 | I4: Y | J4: $65,299 | K4: 35 | L4: Yes
A5: 1 | B5: BARRINGTON | C5: BAR | D5: BARRINGTON PUBLIC LIBRARY | E5: Manager/Department Head | F5: 1 | G5: head of reference | H5: $34.57 | I5: Y | J5: $62,920 | K5: 35 | L5: Yes
A6: 1 | B6: BARRINGTON | C6: BAR | D6: BARRINGTON PUBLIC LIBRARY | E6: Childrens and/or Young Adult Services Librarian | F6: 1 | G6: YA librarian | H6: $28.30 | I6: Y | J6: $51,500 | K6: 35 | L6: Yes
A7: 1 | B7: BARRINGTON | C7: BAR | D7: BARRINGTON PUBLIC LIBRARY | E7: Manager/Department Head | F7: 1 | G7: community services librarian | H7: $28.30 | I7: Y | J7: $51,500 | K7: 35 | L7: Yes
A8: 1 | B8: BARRINGTON | C8: BAR | D8: BARRINGTON PUBLIC LIBRARY | E8: Library Associate | F8: 1 | G8: Administrative assistant II | H8: $26.73 | I8: Y | J8: $48,653 | K8: 35 | L8: No
A9: 1 | B9: BARRINGTON | C9: BAR | D9: BARRINGTON PUBLIC LIBRARY | E9: Library Associate | F9: 3 | G9: Library assistant I | H9: $26.73 | I9: Y | J9: $48,653 | K9: 35 | L9: No
A10: 1 | B10: BARRINGTON | C10: BAR | D10: BARRINGTON PUBLIC LIBRARY | E10: Library Associate | F10: 1 | G10: Library assistant I | H10: $24.06 | I10: Y | J10: $43,790 | K10: 35 | L10: No
A11: 1 | B11: BARRINGTON | C11: BAR | D11: BARRINGTON PUBLIC LIBRARY | E11: Library Technician | F11: 1 | G11: Library assistant II | H11: $19.74 | I11: Y | J11: $35,921 | K11: 35 | L11: No
A12: 1 | B12: BARRINGTON | C12: BAR | D12: BARRINGTON PUBLIC LIBRARY | E12: Library Technician | F12: 1 | G12: Library assistant II | H12: $18.88 | I12: Y | J12: $34,358 | K12: 35 | L12: No
A13: 1 | B13: BARRINGTON | C13: BAR | D13: BARRINGTON PUBLIC LIBRARY | E13: Manager/Department Head | F13: 1 | G13: Technology Coordinator | H13: $27.57 | I13: Y | J13: $50,175 | K13: 35 | L13: No
A14: 1 | B14: BARRINGTON | C14: BAR | D14: BARRINGTON PUBLIC LIBRARY | E14: Buildings/Ground Staff | F14: 1 | G14: head custodian | H14: $22.77 | I14: =IF(J14>0,"Y"," N") -> Y | J14: $41,449 | K14: 35 | L14: No
A15: 1 | B15: BARRINGTON | C15: BAR | D15: BARRINGTON PUBLIC LIBRARY | E15: Library Associate | F15: 10 | G15: Library assistant | H15: $16.19 | I15: N | K15: 15 | L15: No
A16: 1 | B16: BARRINGTON | C16: BAR | D16: BARRINGTON PUBLIC LIBRARY | E16: Buildings/Ground Staff | F16: 3 | G16: custodians | H16: $10.82 | I16: N | K16: 12 | L16: No
A17: 1 | B17: BARRINGTON | C17: BAR | D17: BARRINGTON PUBLIC LIBRARY | E17: Aide/Page | F17: 6 | G17: pages | H17: $8.26 | I17: N | K17: 9 | L17: No
A18: 2 | B18: BRISTOL | C18: BRI | D18: ROGERS FREE LIBRARY | E18: Director | F18: 1 | G18: Director | H18: =IF(J18>0,(J18/(K18*52))," ") -> $34.92 | I18: =IF(J18>0,"Y"," N") -> Y | J18: $63,550 | K18: 35 | L18: Yes
A19: 2 | B19: BRISTOL | C19: BRI | D19: ROGERS FREE LIBRARY | E19: Deputy/Associate/Assistant Director | F19: 1 | G19: Asst. Director | H19: $24.18 | I19: Y | J19: $44,000 | K19: 35 | L19: No
A20: 2 | B20: BRISTOL | C20: BRI | D20: ROGERS FREE LIBRARY | E20: Childrens and/or Young Adult Services Librarian | F20: 1 | G20: Youth services librarian | H20: $23.08 | I20: Y | J20: $42,000 | K20: 35 | L20: Yes
A21: 2 | B21: BRISTOL | C21: BRI | D21: ROGERS FREE LIBRARY | E21: Reference/Information Librarian | F21: 2 | G21: Ref/info/outreach librarian | H21: $23.08 | I21: Y | J21: $42,000 | K21: 35 | L21: Yes
A22: 2 | B22: BRISTOL | C22: BRI | D22: ROGERS FREE LIBRARY | E22: Library Associate | F22: 1 | G22: Liby assoc/technology | H22: $20.33 | I22: Y | J22: $37,000 | K22: 35 | L22: No
A23: 2 | B23: BRISTOL | C23: BRI | D23: ROGERS FREE LIBRARY | E23: Library Associate | F23: 1 | G23: Circulation supervisor | H23: $17.58 | I23: Y | J23: $32,000 | K23: 35 | L23: No
A24: 2 | B24: BRISTOL | C24: BRI | D24: ROGERS FREE LIBRARY | E24: Library Associate | F24: 13 | G24: Circ associates | H24: $15.04 | I24: N | K24: 24 | L24: No
A25: 2 | B25: BRISTOL | C25: BRI | D25: ROGERS FREE LIBRARY | E25: Aide/Page | F25: 2 | G25: Page | H25: $8.69 | I25: N | K25: 10 | L25: No
A26: 2 | B26: BRISTOL | C26: BRI | D26: ROGERS FREE LIBRARY | E26: Buildings/Ground Staff | F26: 1 | G26: Custodian | H26: =IF(J26>0,(J26/(K26*52))," ") -> $17.22 | I26: =IF(J26>0,"Y"," N") -> Y | J26: $31,349 | K26: 35 | L26: No
A27: 3 | B27: BURRILLVILLE | C27: BUR | D27: JESSE M. SMITH MEMORIAL LIBRARY | E27: Buildings/Ground Staff | F27: 1 | G27: Building and Grounds Supervisor | H27: $19.69 | I27: N | K27: 40 | L27: No
A28: 3 | B28: BURRILLVILLE | C28: BUR | D28: JESSE M. SMITH MEMORIAL LIBRARY | E28: Aide/Page | F28: 2 | G28: Page | H28: $9.00 | I28: N | K28: 14 | L28: No
A29: 3 | B29: BURRILLVILLE | C29: BUR | D29: JESSE M. SMITH MEMORIAL LIBRARY | E29: Childrens and/or Young Adult Services Librarian | F29: 1 | G29: Head Children\'s Librarian | H29: $22.52 | I29: N | K29: 35 | L29: Yes
A30: 3 | B30: BURRILLVILLE | C30: BUR | D30: JESSE M. SMITH MEMORIAL LIBRARY | E30: Childrens and/or Young Adult Services Librarian | F30: 1 | G30: Children\'s Librarian | H30: $19.42 | I30: N | K30: 19 | L30: Yes
A31: 3 | B31: BURRILLVILLE | C31: BUR | D31: JESSE M. SMITH MEMORIAL LIBRARY | E31: Director | F31: 1 | G31: Director | H31: $31.87 | I31: N | K31: 35 | L31: Yes
A32: 3 | B32: BURRILLVILLE | C32: BUR | D32: JESSE M. SMITH MEMORIAL LIBRARY | E32: Deputy/Associate/Assistant Director | F32: 1 | G32: Assistant Director | H32: $26.43 | I32: N | K32: 35 | L32: Yes
A33: 3 | B33: BURRILLVILLE | C33: BUR | D33: JESSE M. SMITH MEMORIAL LIBRARY | E33: Library Associate | F33: 1 | G33: Children\'s Paraprofessional | H33: $13.99 | I33: N | K33: 18 | L33: No
A34: 3 | B34: BURRILLVILLE | C34: BUR | D34: JESSE M. SMITH MEMORIAL LIBRARY | E34: Library Associate | F34: 1 | G34: Children\'s Paraprofessional | H34: $15.17 | I34: N | K34: 18 | L34: No
A35: 3 | B35: BURRILLVILLE | C35: BUR | D35: JESSE M. SMITH MEMORIAL LIBRARY | E35: Library Associate | F35: 1 | G35: Reference Paraprofessioanl | H35: $13.99 | I35: N | K35: 19.5 | L35: No
A36: 3 | B36: BURRILLVILLE | C36: BUR | D36: JESSE M. SMITH MEMORIAL LIBRARY | E36: Technical Services Librarian | F36: 1 | G36: Head of Circulation | H36: $21.78 | I36: N | K36: 35 | L36: No
A37: 3 | B37: BURRILLVILLE | C37: BUR | D37: JESSE M. SMITH MEMORIAL LIBRARY | E37: Reference/Information Librarian | F37: 1 | G37: Reference Specialist | H37: $21.78 | I37: N | K37: 35 | L37: No
A38: 3 | B38: BURRILLVILLE | C38: BUR | D38: JESSE M. SMITH MEMORIAL LIBRARY | E38: Library Technician | F38: 1 | G38: Library Assistant (Circulation II) | H38: $11.42 | I38: N | K38: 14.5 | L38: No
A39: 3 | B39: BURRILLVILLE | C39: BUR | D39: JESSE M. SMITH MEMORIAL LIBRARY | E39: Library Technician | F39: 1 | G39: Library Assistant (Circulation II) | H39: $12.68 | I39: N | K39: 18 | L39: No
A40: 3 | B40: BURRILLVILLE | C40: BUR | D40: JESSE M. SMITH MEMORIAL LIBRARY | E40: Library Technician | F40: 1 | G40: Library Assistant (Circulation II) | H40: $12.00 | I40: N | K40: 14 | L40: No
A41: 3 | B41: BURRILLVILLE | C41: BUR | D41: JESSE M. SMITH MEMORIAL LIBRARY | E41: Library Associate | F41: 1 | G41: Library Assistant (Circulation III) | H41: $13.46 | I41: N | K41: 19.5 | L41: No
A42: 3 | B42: BURRILLVILLE | C42: BUR | D42: JESSE M. SMITH MEMORIAL LIBRARY | E42: Library Technician | F42: 1 | G42: Library Assistant (Circulation III)/Admin. Assistant | H42: $16.62 | I42: N | K42: 35 | L42: No
A43: 3 | B43: BURRILLVILLE | C43: BUR | D43: JESSE M. SMITH MEMORIAL LIBRARY | E43: Library Technician | F43: 1 | G43: Library Assistant (Circulation III) | H43: $14.80 | I43: N | K43: 35 | L43: No
A44: 3 | B44: BURRILLVILLE | C44: BUR | D44: JESSE M. SMITH MEMORIAL LIBRARY | E44: Office Staff | F44: 1 | G44: Technology Specialist/Admin. Assistant | H44: $21.12 | I44: N | K44: 19.5 | L44: No
A45: 3 | B45: PASCOAG | C45: PAS | D45: PASCOAG FREE PUBLIC LIBRARY | E45: Director | F45: 1 | G45: Director | H45: $15.06 | I45: N | J45: $20,361 | K45: 26 | L45: Yes
A46: 3 | B46: PASCOAG | C46: PAS | D46: PASCOAG FREE PUBLIC LIBRARY | E46: Deputy/Associate/Assistant Director | F46: 1 | G46: Library Manager | H46: $15.06 | I46: N | J46: $20,361 | K46: 26 | L46: No
A47: 3 | B47: PASCOAG | C47: PAS | D47: PASCOAG FREE PUBLIC LIBRARY | E47: Library Associate | F47: 1 | G47: Cataloger | H47: $10.50 | I47: N | J47: $7,644 | K47: 14 | L47: No
A48: 3 | B48: PASCOAG | C48: PAS | D48: PASCOAG FREE PUBLIC LIBRARY | E48: Technical Services Librarian | F48: 1 | G48: Library Technician | H48: $10.24 | I48: N | J48: $6,502 | K48: 11 | L48: No
A49: 3 | B49: PASCOAG | C49: PAS | D49: PASCOAG FREE PUBLIC LIBRARY | E49: Library Associate | F49: 1 | G49: Library Assistant | H49: $9.18 | I49: N | J49: $5,728 | K49: 12 | L49: No
A50: 3 | B50: PASCOAG | C50: PAS | D50: PASCOAG FREE PUBLIC LIBRARY | E50: Library Associate | F50: 1 | G50: Library Assistant | H50: $10.24 | I50: N | J50: $2,520 | K50: 3 | L50: No
A51: 3 | B51: PASCOAG | C51: PAS | D51: PASCOAG FREE PUBLIC LIBRARY | E51: Office Staff | F51: 1 | G51: Bookkeeper | H51: =IF(J51>0,(J51/(K51*52))," ") -> $16.15 | I51: =IF(J51>0,"Y"," N") -> Y | J51: $2,520 | K51: 3 | L51: No
A52: 3 | B52: PASCOAG | C52: PAS | D52: PASCOAG FREE PUBLIC LIBRARY | E52: Buildings/Ground Staff | F52: 1 | G52: Janitor | H52: =IF(J52>0,(J52/(K52*52))," ") -> $13.62 | I52: Y | J52: $2,832 | K52: 4 | L52: No
A53: 4 | B53: CENTRAL FALLS | C53: CFA | D53: CENTRAL FALLS FREE PUBLIC LIBRARY | E53: Director | F53: 1 | G53: Acting Director | H53: =IF(J53>0,(J53/(K53*52))," ") -> $24.04 | I53: Y | J53: $50,000 | K53: 40 | L53: Yes
A54: 4 | B54: CENTRAL FALLS | C54: CFA | D54: CENTRAL FALLS FREE PUBLIC LIBRARY | E54: Manager/Department Head | F54: 1 | G54: Head of Circulation | H54: $9.00 | I54: N | K54: 22 | L54: No
A55: 4 | B55: CENTRAL FALLS | C55: CFA | D55: CENTRAL FALLS FREE PUBLIC LIBRARY | E55: Library Technician | F55: 1 | G55: Library Aide | H55: $9.00 | I55: N | K55: 25 | L55: No
A56: 5 | B56: CHARLESTOWN | C56: CHA | D56: CROSS' MILLS PUBLIC LIBRARY | E56: Director | F56: 1 | G56: Director | H56: =IF(J56>0,(J56/(K56*52))," ") -> $31.88 | I56: =IF(J56>0,"Y"," N") -> Y | J56: $66,308 | K56: 40 | L56: Yes
A57: 5 | B57: CHARLESTOWN | C57: CHA | D57: CROSS' MILLS PUBLIC LIBRARY | E57: Deputy/Associate/Assistant Director | F57: 1 | G57: Assistant Director | H57: =IF(J57>0,(J57/(K57*52))," ") -> $22.98 | I57: Y | J57: $41,820 | K57: 35 | L57: Yes
A58: 5 | B58: CHARLESTOWN | C58: CHA | D58: CROSS' MILLS PUBLIC LIBRARY | E58: Library Associate | F58: 1 | G58: Public Relations & Programming | H58: $14.00 | I58: =IF(J58>0,"Y","N") -> N | K58: 28 | L58: Yes
A59: 5 | B59: CHARLESTOWN | C59: CHA | D59: CROSS' MILLS PUBLIC LIBRARY | E59: Technical Services Librarian | F59: 1 | G59: Technical Librarian | H59: $20.51 | I59: =IF(J59>0,"Y","N") -> N | K59: 8.5 | L59: Yes
A60: 5 | B60: CHARLESTOWN | C60: CHA | D60: CROSS' MILLS PUBLIC LIBRARY | E60: Library Associate | F60: 1 | G60: Circulation Clerk | H60: $12.00 | I60: N | K60: 13 | L60: No
A61: 5 | B61: CHARLESTOWN | C61: CHA | D61: CROSS' MILLS PUBLIC LIBRARY | E61: Library Associate | F61: 1 | G61: Circulation Clerk | H61: $12.00 | I61: N | K61: 17.5 | L61: No
A62: 5 | B62: CHARLESTOWN | C62: CHA | D62: CROSS' MILLS PUBLIC LIBRARY | E62: Library Associate | F62: 1 | G62: Circulation Clerk | H62: $12.35 | I62: N | K62: 8 | L62: No
A63: 5 | B63: CHARLESTOWN | C63: CHA | D63: CROSS' MILLS PUBLIC LIBRARY | E63: Manager/Department Head | F63: 1 | G63: Musical Programming | H63: $17.58 | I63: N | K63: 10 | L63: No
A64: 5 | B64: CHARLESTOWN | C64: CHA | D64: CROSS' MILLS PUBLIC LIBRARY | E64: Library Associate | F64: 1 | G64: Circulation Clerk | H64: $11.00 | I64: N | K64: 20 | L64: No
A65: 5 | B65: CHARLESTOWN | C65: CHA | D65: CROSS' MILLS PUBLIC LIBRARY | E65: Aide/Page | F65: 1 | G65: Shelver | H65: $10.00 | I65: N | K65: 11 | L65: No
A66: 5 | B66: CHARLESTOWN | C66: CHA | D66: CROSS' MILLS PUBLIC LIBRARY | E66: Buildings/Ground Staff | F66: 1 | G66: Maintenance | H66: $15.59 | I66: N | K66: 12 | L66: No
A67: 5 | B67: CHARLESTOWN | C67: CHA | D67: CROSS' MILLS PUBLIC LIBRARY | E67: Buildings/Ground Staff | F67: 1 | G67: Custodian | H67: $20.18 | I67: N | K67: 4 | L67: No
A68: 5 | B68: CHARLESTOWN | C68: CHA | D68: CROSS' MILLS PUBLIC LIBRARY | E68: Aide/Page | F68: 1 | G68: Shelver | H68: $8.50 | I68: N | K68: 6 | L68: No
A69: 6 | B69: COVENTRY | C69: COV | D69: COVENTRY PUBLIC LIBRARY | E69: Director | F69: 1 | G69: Library Director | H69: =IF(J69>0,(J69/(K69*52))," ") -> $39.53 | I69: =IF(J69>0,"Y"," N") -> Y | J69: $71,951 | K69: 35 | L69: Yes
A70: 6 | B70: COVENTRY | C70: COV | D70: COVENTRY PUBLIC LIBRARY | E70: Deputy/Associate/Assistant Director | F70: 1 | G70: Assistant Director | H70: =IF(J70>0,(J70/(K70*52))," ") -> $32.28 | I70: =IF(J70>0,"Y"," N") -> Y | J70: $58,756 | K70: 35 | L70: Yes
A71: 6 | B71: COVENTRY | C71: COV | D71: COVENTRY PUBLIC LIBRARY | E71: Manager/Department Head | F71: 1 | G71: Adult Services | H71: $27.09 | I71: Y | J71: $49,299 | K71: 35 | L71: Yes
A72: 6 | B72: COVENTRY | C72: COV | D72: COVENTRY PUBLIC LIBRARY | E72: Manager/Department Head | F72: 1 | G72: Youth Services | H72: $32.62 | I72: Y | J72: $59,368 | K72: 35 | L72: Yes
A73: 6 | B73: COVENTRY | C73: COV | D73: COVENTRY PUBLIC LIBRARY | E73: Manager/Department Head | F73: 1 | G73: Technical Services | H73: $29.88 | I73: Y | J73: $54,384 | K73: 35 | L73: Yes
A74: 6 | B74: COVENTRY | C74: COV | D74: COVENTRY PUBLIC LIBRARY | E74: Manager/Department Head | F74: 1 | G74: Circulation Manager | H74: $25.33 | I74: Y | J74: $46,103 | K74: 35 | L74: No
A75: 6 | B75: COVENTRY | C75: COV | D75: COVENTRY PUBLIC LIBRARY | E75: Buildings/Ground Staff | F75: 1 | G75: Building Maintenance | H75: $20.10 | I75: Y | J75: $20,901 | K75: 20 | L75: No
A76: 6 | B76: COVENTRY | C76: COV | D76: COVENTRY PUBLIC LIBRARY | E76: Buildings/Ground Staff | F76: 1 | G76: Custodian | H76: $17.22 | I76: Y | J76: $17,913 | K76: 20 | L76: No
A77: 6 | B77: COVENTRY | C77: COV | D77: COVENTRY PUBLIC LIBRARY | E77: Library Technician | F77: 1 | G77: Technology Coordinator | H77: $24.15 | I77: Y | J77: $21,974 | K77: 17.5 | L77: No
A78: 6 | B78: COVENTRY | C78: COV | D78: COVENTRY PUBLIC LIBRARY | E78: Reference/Information Librarian | F78: 5 | G78: Part-time Reference Librarians | H78: $19.26 | I78: N | K78: 15 | L78: Yes
A79: 6 | B79: COVENTRY | C79: COV | D79: COVENTRY PUBLIC LIBRARY | E79: Branch Librarian | F79: 1 | G79: Part-time Branch Librarian | H79: $18.03 | I79: N | K79: 18 | L79: Yes
A80: 6 | B80: COVENTRY | C80: COV | D80: COVENTRY PUBLIC LIBRARY | E80: Childrens and/or Young Adult Services Librarian | F80: 2 | G80: Part-time Youth Services Librarians | H80: $19.52 | I80: N | K80: 20 | L80: Yes
A81: 6 | B81: COVENTRY | C81: COV | D81: COVENTRY PUBLIC LIBRARY | E81: Library Technician | F81: 10 | G81: Part-time Circulation/Youth Services Assistants | H81: $13.35 | I81: N | K81: 19 | L81: No
A82: 6 | B82: COVENTRY | C82: COV | D82: COVENTRY PUBLIC LIBRARY | E82: Library Technician | F82: 1 | G82: Technical Assistant | H82: $11.91 | I82: N | K82: 19 | L82: No
A83: 6 | B83: COVENTRY | C83: COV | D83: COVENTRY PUBLIC LIBRARY | E83: Aide/Page | F83: 2 | G83: Library Aides | H83: $11.76 | I83: N | K83: 15 | L83: No
A84: 6 | B84: COVENTRY | C84: COV | D84: COVENTRY PUBLIC LIBRARY | E84: Library Technician | F84: 1 | G84: Homebound Coordinator | H84: $11.76 | I84: N | K84: 15 | L84: No
A85: 7 | B85: CRANSTON | C85: CRA | D85: CRANSTON PUBLIC LIBRARY | E85: Director | F85: 1 | G85: Library Director | H85: =IF(J85>0,(J85/(K85*52))," ") -> $49.40 | I85: =IF(J85>0,"Y"," N") -> Y | J85: $89,900 | K85: 35 | L85: Yes
A86: 7 | B86: CRANSTON | C86: CRA | D86: CRANSTON PUBLIC LIBRARY | E86: Deputy/Associate/Assistant Director | F86: 1 | G86: Assistant Library Director | H86: =IF(J86>0,(J86/(K86*52))," ") -> $37.91 | I86: =IF(J86>0,"Y"," N") -> Y | J86: $69,000 | K86: 35 | L86: Yes
A87: 7 | B87: CRANSTON | C87: CRA | D87: CRANSTON PUBLIC LIBRARY | E87: Manager/Department Head | F87: 1 | G87: Coordinator of Adult Services | H87: $41.16 | I87: Y | J87: $74,916 | K87: 35 | L87: Yes
A88: 7 | B88: CRANSTON | C88: CRA | D88: CRANSTON PUBLIC LIBRARY | E88: Manager/Department Head | F88: 1 | G88: Coordinator of youth Services | H88: $34.21 | I88: Y | J88: $62,266 | K88: 35 | L88: Yes
A89: 7 | B89: CRANSTON | C89: CRA | D89: CRANSTON PUBLIC LIBRARY | E89: Manager/Department Head | F89: 1 | G89: Coordinator of Technical Services | H89: $35.67 | I89: Y | J89: $64,923 | K89: 35 | L89: Yes
A90: 7 | B90: CRANSTON | C90: CRA | D90: CRANSTON PUBLIC LIBRARY | E90: Branch Librarian | F90: 1 | G90: Branch Librarian | H90: $36.03 | I90: Y | J90: $65,582 | K90: 35 | L90: Yes
A91: 7 | B91: CRANSTON | C91: CRA | D91: CRANSTON PUBLIC LIBRARY | E91: Childrens and/or Young Adult Services Librarian | F91: 1 | G91: Head of Teen Services | H91: $36.03 | I91: Y | J91: $65,582 | K91: 35 | L91: Yes
A92: 7 | B92: CRANSTON | C92: CRA | D92: CRANSTON PUBLIC LIBRARY | E92: Childrens and/or Young Adult Services Librarian | F92: 2 | G92: Youth Services Librarian | H92: $30.62 | I92: Y | J92: $55,728 | K92: 35 | L92: Yes
A93: 7 | B93: CRANSTON | C93: CRA | D93: CRANSTON PUBLIC LIBRARY | E93: Childrens and/or Young Adult Services Librarian | F93: 2 | G93: Youth Services Librarian | H93: $23.73 | I93: Y | J93: $43,184 | K93: 35 | L93: Yes
A94: 7 | B94: CRANSTON | C94: CRA | D94: CRANSTON PUBLIC LIBRARY | E94: Reference/Information Librarian | F94: 1 | G94: Information Services Librarian | H94: $30.06 | I94: Y | J94: $54,714 | K94: 35 | L94: Yes
A95: 7 | B95: CRANSTON | C95: CRA | D95: CRANSTON PUBLIC LIBRARY | E95: Reference/Information Librarian | F95: 1 | G95: Information Services Librarian | H95: $23.73 | I95: Y | J95: $43,184 | K95: 35 | L95: Yes
A96: 7 | B96: CRANSTON | C96: CRA | D96: CRANSTON PUBLIC LIBRARY | E96: Reference/Information Librarian | F96: 1 | G96: Information Services Librarian | H96: $30.34 | I96: Y | J96: $55,223 | K96: 35 | L96: Yes
A97: 7 | B97: CRANSTON | C97: CRA | D97: CRANSTON PUBLIC LIBRARY | E97: Branch Librarian | F97: 1 | G97: Branch Librarian | H97: $29.50 | I97: Y | J97: $53,689 | K97: 35 | L97: Yes
A98: 7 | B98: CRANSTON | C98: CRA | D98: CRANSTON PUBLIC LIBRARY | E98: Branch Librarian | F98: 1 | G98: Branch Librarian | H98: $32.80 | I98: Y | J98: $59,691 | K98: 35 | L98: Yes
A99: 7 | B99: CRANSTON | C99: CRA | D99: CRANSTON PUBLIC LIBRARY | E99: Branch Librarian | F99: 1 | G99: Branch Librarian | H99: $30.62 | I99: Y | J99: $55,728 | K99: 35 | L99: Yes
A100: 7 | B100: CRANSTON | C100: CRA | D100: CRANSTON PUBLIC LIBRARY | E100: Manager/Department Head | F100: 1 | G100: Head of Circulation | H100: $24.22 | I100: Y | J100: $44,078 | K100: 35 | L100: No
A101: 7 | B101: CRANSTON | C101: CRA | D101: CRANSTON PUBLIC LIBRARY | E101: Manager/Department Head | F101: 1 | G101: Office Manager | H101: $24.22 | I101: Y | J101: $44,078 | K101: 35 | L101: No
A102: 7 | B102: CRANSTON | C102: CRA | D102: CRANSTON PUBLIC LIBRARY | E102: Buildings/Ground Staff | F102: 1 | G102: Custodian | H102: $20.98 | I102: Y | J102: $38,178 | K102: 35 | L102: No
A103: 7 | B103: CRANSTON | C103: CRA | D103: CRANSTON PUBLIC LIBRARY | E103: Library Associate | F103: 3 | G103: Library Assistant II | H103: $20.50 | I103: Y | J103: $37,308 | K103: 35 | L103: No
A104: 7 | B104: CRANSTON | C104: CRA | D104: CRANSTON PUBLIC LIBRARY | E104: Library Associate | F104: 4 | G104: Library Assistant II | H104: $20.88 | I104: Y | J104: $37,993 | K104: 35 | L104: No
A105: 7 | B105: CRANSTON | C105: CRA | D105: CRANSTON PUBLIC LIBRARY | E105: Library Associate | F105: 1 | G105: Library Assistant II | H105: $20.69 | I105: Y | J105: $37,652 | K105: 35 | L105: No
A106: 7 | B106: CRANSTON | C106: CRA | D106: CRANSTON PUBLIC LIBRARY | E106: Office Staff | F106: 1 | G106: Administrative Assistant | H106: $20.69 | I106: Y | J106: $37,652 | K106: 35 | L106: No
A107: 7 | B107: CRANSTON | C107: CRA | D107: CRANSTON PUBLIC LIBRARY | E107: Library Associate | F107: 1 | G107: Library Assistant II | H107: $15.81 | I107: Y | J107: $28,783 | K107: 35 | L107: No
A108: 7 | B108: CRANSTON | C108: CRA | D108: CRANSTON PUBLIC LIBRARY | E108: Buildings/Ground Staff | F108: 1 | G108: Driver | H108: $15.67 | I108: Y | J108: $20,374 | K108: 25 | L108: No
A109: 7 | B109: CRANSTON | C109: CRA | D109: CRANSTON PUBLIC LIBRARY | E109: Office Staff | F109: 1 | G109: Community Engagment Mgr | H109: $16.36 | I109: Y | J109: $29,767 | K109: 35 | L109: No
A110: 7 | B110: CRANSTON | C110: CRA | D110: CRANSTON PUBLIC LIBRARY | E110: Library Technician | F110: 4 | G110: Library Aide | H110: $9.00 | I110: =IF(J110>0,"Y"," N") -> N | K110: 3 | L110: No
A111: 7 | B111: CRANSTON | C111: CRA | D111: CRANSTON PUBLIC LIBRARY | E111: Library Technician | F111: 2 | G111: Library Aide | H111: $9.00 | I111: =IF(J111>0,"Y"," N") -> N | K111: 5 | L111: No
A112: 7 | B112: CRANSTON | C112: CRA | D112: CRANSTON PUBLIC LIBRARY | E112: Library Technician | F112: 4 | G112: Library Aide | H112: $9.00 | I112: N | K112: 12 | L112: No
A113: 7 | B113: CRANSTON | C113: CRA | D113: CRANSTON PUBLIC LIBRARY | E113: Library Technician | F113: 2 | G113: Library Aide | H113: $9.00 | I113: N | K113: 16 | L113: No
A114: 7 | B114: CRANSTON | C114: CRA | D114: CRANSTON PUBLIC LIBRARY | E114: Library Technician | F114: 3 | G114: Library Aide | H114: $9.00 | I114: N | K114: 4 | L114: No
A115: 7 | B115: CRANSTON | C115: CRA | D115: CRANSTON PUBLIC LIBRARY | E115: Library Technician | F115: 2 | G115: Library Aide | H115: $9.00 | I115: N | K115: 8 | L115: No
A116: 7 | B116: CRANSTON | C116: CRA | D116: CRANSTON PUBLIC LIBRARY | E116: Library Technician | F116: 2 | G116: Library Aide | H116: $9.00 | I116: N | K116: 18 | L116: No
A117: 7 | B117: CRANSTON | C117: CRA | D117: CRANSTON PUBLIC LIBRARY | E117: Library Technician | F117: 2 | G117: Library Aide | H117: $9.00 | I117: N | K117: 20 | L117: No
A118: 7 | B118: CRANSTON | C118: CRA | D118: CRANSTON PUBLIC LIBRARY | E118: Library Technician | F118: 3 | G118: Library Aide | H118: $9.00 | I118: N | K118: 15 | L118: No
A119: 7 | B119: CRANSTON | C119: CRA | D119: CRANSTON PUBLIC LIBRARY | E119: Library Technician | F119: 2 | G119: Library Aide | H119: $9.00 | I119: N | K119: 21 | L119: No
A120: 7 | B120: CRANSTON | C120: CRA | D120: CRANSTON PUBLIC LIBRARY | E120: Buildings/Ground Staff | F120: 1 | G120: Custodian | H120: $10.00 | I120: N | K120: 14 | L120: No
A121: 7 | B121: CRANSTON | C121: CRA | D121: CRANSTON PUBLIC LIBRARY | E121: Buildings/Ground Staff | F121: 2 | G121: Custodian | H121: $10.00 | I121: N | K121: 25 | L121: No
A122: 7 | B122: CRANSTON | C122: CRA | D122: CRANSTON PUBLIC LIBRARY | E122: Buildings/Ground Staff | F122: 1 | G122: Security | H122: $9.00 | I122: N | K122: 12 | L122: No
A123: 7 | B123: CRANSTON | C123: CRA | D123: CRANSTON PUBLIC LIBRARY | E123: Reference/Information Librarian | F123: 1 | G123: Librarian | H123: $17.50 | I123: N | K123: 6 | L123: Yes
A124: 7 | B124: CRANSTON | C124: CRA | D124: CRANSTON PUBLIC LIBRARY | E124: Reference/Information Librarian | F124: 1 | G124: Librarian | H124: $16.50 | I124: N | K124: 30 | L124: Yes
A125: 7 | B125: CRANSTON | C125: CRA | D125: CRANSTON PUBLIC LIBRARY | E125: Childrens and/or Young Adult Services Librarian | F125: 1 | G125: Librarian | H125: $16.50 | I125: N | K125: 3.5 | L125: Yes
A126: 7 | B126: CRANSTON | C126: CRA | D126: CRANSTON PUBLIC LIBRARY | E126: Childrens and/or Young Adult Services Librarian | F126: 1 | G126: Librarian | H126: $16.50 | I126: N | K126: 20 | L126: Yes
A127: 7 | B127: CRANSTON | C127: CRA | D127: CRANSTON PUBLIC LIBRARY | E127: Reference/Information Librarian | F127: 3 | G127: Librarian | H127: $16.50 | I127: N | K127: 6 | L127: Yes
A128: 7 | B128: CRANSTON | C128: CRA | D128: CRANSTON PUBLIC LIBRARY | E128: Library Associate | F128: 2 | G128: Library Assistant | H128: $9.00 | I128: N | K128: 7 | L128: No
A129: 7 | B129: CRANSTON | C129: CRA | D129: CRANSTON PUBLIC LIBRARY | E129: Library Associate | F129: 1 | G129: Library Assistant | H129: $10.25 | I129: N | K129: 7 | L129: No
A130: 7 | B130: CRANSTON | C130: CRA | D130: CRANSTON PUBLIC LIBRARY | E130: Library Associate | F130: 1 | G130: Library Assistant | H130: $10.25 | I130: N | K130: 23 | L130: No
A131: 7 | B131: CRANSTON | C131: CRA | D131: CRANSTON PUBLIC LIBRARY | E131: Library Associate | F131: 1 | G131: Library Assistant | H131: $10.25 | I131: N | K131: 4 | L131: No
A132: 7 | B132: CRANSTON | C132: CRA | D132: CRANSTON PUBLIC LIBRARY | E132: Library Associate | F132: 1 | G132: Library Assistant | H132: $10.25 | I132: N | K132: 12 | L132: No
A133: 7 | B133: CRANSTON | C133: CRA | D133: CRANSTON PUBLIC LIBRARY | E133: Buildings/Ground Staff | F133: 1 | G133: Custodian | H133: $9.35 | I133: N | K133: 9 | L133: No
A134: 7 | B134: CRANSTON | C134: CRA | D134: CRANSTON PUBLIC LIBRARY | E134: Buildings/Ground Staff | F134: 1 | G134: Custodian | H134: $12.35 | I134: N | K134: 20 | L134: No
A135: 7 | B135: CRANSTON | C135: CRA | D135: CRANSTON PUBLIC LIBRARY | E135: Library Technician | F135: 1 | G135: Library Aide | H135: $9.75 | I135: N | K135: 25 | L135: No
A136: 7 | B136: CRANSTON | C136: CRA | D136: CRANSTON PUBLIC LIBRARY | E136: Library Technician | F136: 1 | G136: Library Aide | H136: $11.55 | I136: N | K136: 18 | L136: No
A137: 7 | B137: CRANSTON | C137: CRA | D137: CRANSTON PUBLIC LIBRARY | E137: Library Associate | F137: 1 | G137: Library Assistant | H137: $12.05 | I137: N | K137: 20 | L137: No
A138: 7 | B138: CRANSTON | C138: CRA | D138: CRANSTON PUBLIC LIBRARY | E138: Library Associate | F138: 1 | G138: Library Assistant | H138: $11.10 | I138: N | K138: 10 | L138: No
A139: 7 | B139: CRANSTON | C139: CRA | D139: CRANSTON PUBLIC LIBRARY | E139: Library Associate | F139: 1 | G139: Library Assistant | H139: $11.10 | I139: N | K139: 18 | L139: No
A140: 7 | B140: CRANSTON | C140: CRA | D140: CRANSTON PUBLIC LIBRARY | E140: Library Associate | F140: 1 | G140: Library Assistant | H140: $13.60 | I140: N | K140: 3 | L140: No
A141: 7 | B141: CRANSTON | C141: CRA | D141: CRANSTON PUBLIC LIBRARY | E141: Library Associate | F141: 1 | G141: Library Assistant | H141: $12.30 | I141: N | K141: 6 | L141: No
A142: 7 | B142: CRANSTON | C142: CRA | D142: CRANSTON PUBLIC LIBRARY | E142: Library Associate | F142: 1 | G142: Library Assistant | H142: $12.30 | I142: N | K142: 20 | L142: No
A143: 7 | B143: CRANSTON | C143: CRA | D143: CRANSTON PUBLIC LIBRARY | E143: Aide/Page | F143: 3 | G143: Page | H143: $9.00 | I143: N | K143: 8 | L143: No
A144: 7 | B144: CRANSTON | C144: CRA | D144: CRANSTON PUBLIC LIBRARY | E144: Aide/Page | F144: 1 | G144: Page | H144: $9.00 | I144: N | K144: 20 | L144: No
A145: 7 | B145: CRANSTON | C145: CRA | D145: CRANSTON PUBLIC LIBRARY | E145: Buildings/Ground Staff | F145: 1 | G145: Security | H145: $10.10 | I145: N | K145: 3 | L145: No
A146: 7 | B146: CRANSTON | C146: CRA | D146: CRANSTON PUBLIC LIBRARY | E146: Buildings/Ground Staff | F146: 1 | G146: Security | H146: $9.35 | I146: N | K146: 5 | L146: No
A147: 7 | B147: CRANSTON | C147: CRA | D147: CRANSTON PUBLIC LIBRARY | E147: Office Staff | F147: 1 | G147: Secretary to Board | H147: $13.30 | I147: N | K147: 1.5 | L147: No
A148: 7 | B148: CRANSTON | C148: CRA | D148: CRANSTON PUBLIC LIBRARY | E148: Library Associate | F148: 1 | G148: Library Assistant | H148: $12.30 | I148: N | K148: 7 | L148: No
A149: 8 | B149: CUMBERLAND | C149: CUM | D149: CUMBERLAND PUBLIC LIBRARY | E149: Director | F149: 1 | G149: Library Director | H149: =IF(J149>0,(J149/(K149*52))," ") -> $41.98 | I149: Y | J149: $76,407 | K149: 35 | L149: Yes
A150: 8 | B150: CUMBERLAND | C150: CUM | D150: CUMBERLAND PUBLIC LIBRARY | E150: Deputy/Associate/Assistant Director | F150: 1 | G150: Assistant Director/Technology Coordinator | H150: $33.33 | I150: Y | J150: $60,658 | K150: 35 | L150: Yes
A151: 8 | B151: CUMBERLAND | C151: CUM | D151: CUMBERLAND PUBLIC LIBRARY | E151: Manager/Department Head | F151: 1 | G151: Reference Services Coordinator | H151: $29.05 | I151: Y | J151: $52,866 | K151: 35 | L151: Yes
A152: 8 | B152: CUMBERLAND | C152: CUM | D152: CUMBERLAND PUBLIC LIBRARY | E152: Manager/Department Head | F152: 1 | G152: Adult Services Coordinator | H152: $29.34 | I152: Y | J152: $53,395 | K152: 35 | L152: Yes
A153: 8 | B153: CUMBERLAND | C153: CUM | D153: CUMBERLAND PUBLIC LIBRARY | E153: Manager/Department Head | F153: 1 | G153: Children\'s Services Coordinator | H153: $28.41 | I153: Y | J153: $51,709 | K153: 35 | L153: Yes
A154: 8 | B154: CUMBERLAND | C154: CUM | D154: CUMBERLAND PUBLIC LIBRARY | E154: Manager/Department Head | F154: 1 | G154: Technical Services/Homebound Librarian | H154: $28.41 | I154: Y | J154: $51,709 | K154: 35 | L154: Yes
A155: 8 | B155: CUMBERLAND | C155: CUM | D155: CUMBERLAND PUBLIC LIBRARY | E155: Childrens and/or Young Adult Services Librarian | F155: 1 | G155: Young Adult Reference Librarian | H155: $27.27 | I155: Y | J155: $49,631 | K155: 35 | L155: Yes
A156: 8 | B156: CUMBERLAND | C156: CUM | D156: CUMBERLAND PUBLIC LIBRARY | E156: Childrens and/or Young Adult Services Librarian | F156: 1 | G156: Part-time Children\'s Librarian | H156: $24.73 | I156: N | K156: 12.5 | L156: Yes
A157: 8 | B157: CUMBERLAND | C157: CUM | D157: CUMBERLAND PUBLIC LIBRARY | E157: Manager/Department Head | F157: 1 | G157: Circulation Supervisor | H157: $21.02 | I157: N | K157: 35 | L157: No
A158: 8 | B158: CUMBERLAND | C158: CUM | D158: CUMBERLAND PUBLIC LIBRARY | E158: Office Staff | F158: 1 | G158: Administrative Assistant | H158: $21.82 | I158: N | K158: 35 | L158: No
A159: 8 | B159: CUMBERLAND | C159: CUM | D159: CUMBERLAND PUBLIC LIBRARY | E159: Office Staff | F159: 1 | G159: Bookkeeper | H159: $17.21 | I159: N | K159: 4 | L159: No
A160: 8 | B160: CUMBERLAND | C160: CUM | D160: CUMBERLAND PUBLIC LIBRARY | E160: Library Associate | F160: 1 | G160: Full-time Children\'s Assistant | H160: $18.01 | I160: N | K160: 35 | L160: No
A161: 8 | B161: CUMBERLAND | C161: CUM | D161: CUMBERLAND PUBLIC LIBRARY | E161: Library Associate | F161: 1 | G161: Part-time Children\'s Assistant | H161: $16.28 | I161: N | K161: 19.5 | L161: No
A162: 8 | B162: CUMBERLAND | C162: CUM | D162: CUMBERLAND PUBLIC LIBRARY | E162: Library Associate | F162: 1 | G162: Part-time Children\'s Assistant | H162: $15.58 | I162: N | K162: 19.5 | L162: No
A163: 8 | B163: CUMBERLAND | C163: CUM | D163: CUMBERLAND PUBLIC LIBRARY | E163: Library Associate | F163: 2 | G163: Part-time Reference Assistant | H163: $15.58 | I163: N | K163: 19.5 | L163: No
A164: 8 | B164: CUMBERLAND | C164: CUM | D164: CUMBERLAND PUBLIC LIBRARY | E164: Library Associate | F164: 1 | G164: Information Services Specialist | H164: $15.58 | I164: N | K164: 19.5 | L164: No
A165: 8 | B165: CUMBERLAND | C165: CUM | D165: CUMBERLAND PUBLIC LIBRARY | E165: Library Associate | F165: 1 | G165: Part-time Reference Assistant | H165: $15.58 | I165: N | K165: 6 | L165: No
A166: 8 | B166: CUMBERLAND | C166: CUM | D166: CUMBERLAND PUBLIC LIBRARY | E166: Library Associate | F166: 2 | G166: Part-time Desk Assistant | H166: $15.42 | I166: N | K166: 19.5 | L166: No
A167: 8 | B167: CUMBERLAND | C167: CUM | D167: CUMBERLAND PUBLIC LIBRARY | E167: Library Associate | F167: 1 | G167: Part-time Desk Assistant | H167: $15.27 | I167: N | K167: 19.5 | L167: No
A168: 8 | B168: CUMBERLAND | C168: CUM | D168: CUMBERLAND PUBLIC LIBRARY | E168: Library Associate | F168: 2 | G168: Part-time Desk Assistant | H168: $14.52 | I168: N | K168: 19.5 | L168: No
A169: 8 | B169: CUMBERLAND | C169: CUM | D169: CUMBERLAND PUBLIC LIBRARY | E169: Library Associate | F169: 2 | G169: Part-time Desk Assistant | H169: $14.52 | I169: N | K169: 16.5 | L169: No
A170: 8 | B170: CUMBERLAND | C170: CUM | D170: CUMBERLAND PUBLIC LIBRARY | E170: Library Technician | F170: 1 | G170: Part-time Catalog Assistant | H170: $15.27 | I170: N | K170: 19.5 | L170: No
A171: 8 | B171: CUMBERLAND | C171: CUM | D171: CUMBERLAND PUBLIC LIBRARY | E171: Library Technician | F171: 1 | G171: Part-time Catalog Assistant | H171: $14.52 | I171: N | K171: 19.5 | L171: No
A172: 8 | B172: CUMBERLAND | C172: CUM | D172: CUMBERLAND PUBLIC LIBRARY | E172: Aide/Page | F172: 1 | G172: Part-time Library Page | H172: $10.51 | I172: N | K172: 15 | L172: No
A173: 8 | B173: CUMBERLAND | C173: CUM | D173: CUMBERLAND PUBLIC LIBRARY | E173: Aide/Page | F173: 3 | G173: Part-time Library Page | H173: $9.54 | I173: N | K173: 15 | L173: No
A174: 8 | B174: CUMBERLAND | C174: CUM | D174: CUMBERLAND PUBLIC LIBRARY | E174: Buildings/Ground Staff | F174: 1 | G174: Facility Manager | H174: $20.43 | I174: N | K174: 40 | L174: No
A175: 8 | B175: CUMBERLAND | C175: CUM | D175: CUMBERLAND PUBLIC LIBRARY | E175: Buildings/Ground Staff | F175: 1 | G175: Part-time Custodian | H175: $16.91 | I175: =IF(J175>0,"Y"," N") -> N | K175: 18 | L175: No
A176: 8 | B176: CUMBERLAND | C176: CUM | D176: CUMBERLAND PUBLIC LIBRARY | E176: Buildings/Ground Staff | F176: 1 | G176: Part-time Custodial Assistant | H176: $16.25 | I176: N | K176: 19.5 | L176: No
A177: 8 | B177: CUMBERLAND | C177: CUM | D177: CUMBERLAND PUBLIC LIBRARY | E177: Buildings/Ground Staff | F177: 1 | G177: Part-time Custodial Assistant | H177: $15.70 | I177: N | K177: 8 | L177: No
A178: 9 | B178: EAST GREENWICH | C178: EGR | D178: EAST GREENWICH FREE LIBRARY | E178: Director | F178: 1 | G178: Director | H178: $41.43 | I178: N | K178: 35 | L178: Yes
A179: 9 | B179: EAST GREENWICH | C179: EGR | D179: EAST GREENWICH FREE LIBRARY | E179: Manager/Department Head | F179: 1 | G179: Head of Refernce and Information Services | H179: $29.82 | I179: N | K179: 35 | L179: Yes
A180: 9 | B180: EAST GREENWICH | C180: EGR | D180: EAST GREENWICH FREE LIBRARY | E180: Manager/Department Head | F180: 1 | G180: Head of Children\'s Services | H180: $28.40 | I180: N | K180: 35 | L180: Yes
A181: 9 | B181: EAST GREENWICH | C181: EGR | D181: EAST GREENWICH FREE LIBRARY | E181: Manager/Department Head | F181: 1 | G181: Head of Cirulation | H181: $20.22 | I181: N | K181: 35 | L181: No
A182: 9 | B182: EAST GREENWICH | C182: EGR | D182: EAST GREENWICH FREE LIBRARY | E182: Library Associate | F182: 1 | G182: Circulation clerk | H182: $20.22 | I182: N | K182: 15 | L182: No
A183: 9 | B183: EAST GREENWICH | C183: EGR | D183: EAST GREENWICH FREE LIBRARY | E183: Childrens and/or Young Adult Services Librarian | F183: 1 | G183: childrens librarian | H183: $21.50 | I183: N | K183: 16 | L183: Yes
A184: 9 | B184: EAST GREENWICH | C184: EGR | D184: EAST GREENWICH FREE LIBRARY | E184: Childrens and/or Young Adult Services Librarian | F184: 1 | G184: children\'s librarian | H184: $18.07 | I184: N | K184: 10 | L184: No
A185: 9 | B185: EAST GREENWICH | C185: EGR | D185: EAST GREENWICH FREE LIBRARY | E185: Reference/Information Librarian | F185: 1 | G185: Reference librarian | H185: $20.50 | I185: N | K185: 12 | L185: Yes
A186: 9 | B186: EAST GREENWICH | C186: EGR | D186: EAST GREENWICH FREE LIBRARY | E186: Reference/Information Librarian | F186: 1 | G186: Reference librarian | H186: $19.53 | I186: N | K186: 20 | L186: Yes
A187: 9 | B187: EAST GREENWICH | C187: EGR | D187: EAST GREENWICH FREE LIBRARY | E187: Library Associate | F187: 3 | G187: circulation clerk | H187: $11.62 | I187: N | K187: 56 | L187: No
A188: 9 | B188: EAST GREENWICH | C188: EGR | D188: EAST GREENWICH FREE LIBRARY | E188: Office Staff | F188: 1 | G188: administrative assistant | H188: $17.86 | I188: N | K188: 24 | L188: No
A189: 9 | B189: EAST GREENWICH | C189: EGR | D189: EAST GREENWICH FREE LIBRARY | E189: Technical Services Librarian | F189: 1 | G189: technical services | H189: $12.29 | I189: N | K189: 9 | L189: No
A190: 9 | B190: EAST GREENWICH | C190: EGR | D190: EAST GREENWICH FREE LIBRARY | E190: Aide/Page | F190: 1 | G190: page | H190: $9.09 | I190: N | K190: 20 | L190: No
A191: 9 | B191: EAST GREENWICH | C191: EGR | D191: EAST GREENWICH FREE LIBRARY | E191: Buildings/Ground Staff | F191: 1 | G191: maintenace | H191: $20.22 | I191: N | K191: 15 | L191: No
A192: 9 | B192: EAST GREENWICH | C192: EGR | D192: EAST GREENWICH FREE LIBRARY | E192: Technical Services Librarian | F192: 1 | G192: technical services | H192: $20.22 | I192: N | K192: 5 | L192: No
A193: 10 | B193: EAST PROVIDENCE | C193: EPL | D193: EAST PROVIDENCE PUBLIC LIBRARY | E193: Director | F193: 1 | G193: Director of Library Services | H193: =IF(J193>0,(J193/(K193*52))," ") -> $46.24 | I193: Y | J193: $84,157 | K193: 35 | L193: Yes
A194: 10 | B194: EAST PROVIDENCE | C194: EPL | D194: EAST PROVIDENCE PUBLIC LIBRARY | E194: Manager/Department Head | F194: 1 | G194: Information Services | H194: =IF(J194>0,(J194/(K194*52))," ") -> $31.05 | I194: Y | J194: $56,507 | K194: 35 | L194: Yes
A195: 10 | B195: EAST PROVIDENCE | C195: EPL | D195: EAST PROVIDENCE PUBLIC LIBRARY | E195: Childrens and/or Young Adult Services Librarian | F195: 1 | G195: Children\'s Librarian | H195: $31.05 | I195: Y | J195: $56,507 | K195: 35 | L195: Yes
A196: 10 | B196: EAST PROVIDENCE | C196: EPL | D196: EAST PROVIDENCE PUBLIC LIBRARY | E196: Branch Librarian | F196: 1 | G196: Branch Librarian | H196: $31.05 | I196: Y | J196: $56,507 | K196: 35 | L196: Yes
A197: 10 | B197: EAST PROVIDENCE | C197: EPL | D197: EAST PROVIDENCE PUBLIC LIBRARY | E197: Childrens and/or Young Adult Services Librarian | F197: 1 | G197: Teen Librarian | H197: $31.05 | I197: Y | J197: $56,507 | K197: 35 | L197: Yes
A198: 10 | B198: EAST PROVIDENCE | C198: EPL | D198: EAST PROVIDENCE PUBLIC LIBRARY | E198: Technical Services Librarian | F198: 1 | G198: Cataloging and Acq | H198: $29.70 | I198: Y | J198: $54,061 | K198: 35 | L198: Yes
A199: 10 | B199: EAST PROVIDENCE | C199: EPL | D199: EAST PROVIDENCE PUBLIC LIBRARY | E199: Manager/Department Head | F199: 1 | G199: Systems Librarian | H199: $31.05 | I199: Y | J199: $56,507 | K199: 35 | L199: Yes
A200: 10 | B200: EAST PROVIDENCE | C200: EPL | D200: EAST PROVIDENCE PUBLIC LIBRARY | E200: Manager/Department Head | F200: 1 | G200: Neighborhood and Community Services | H200: $31.05 | I200: Y | J200: $56,507 | K200: 35 | L200: Yes
... 543 more rows

Sheet salariesbyPosition
A1: 2b. City/Town File # | B1: 8. City | C1: 1. Library ID | D1: Location | E1: 160. Job Category | F1: 161. Number of Staff | G1: 162. Official Title(s) at Library | H1: 163. Hourly Rate | I1: Calculated? | J1: 163a. Annual Salary | K1: 164. Hours Worked per Week | L1: 165. MLS?
A2: 13 | B2: HOPKINTON | C2: ASH | D2: ASHAWAY FREE LIBRARY | E2: Aide/Page | F2: 1 | G2: Story Hour Assistant | H2: $21.65 | I2: =IF(J2>0,"Y"," N") -> N | K2: 1 | L2: No
A3: 1 | B3: BARRINGTON | C3: BAR | D3: BARRINGTON PUBLIC LIBRARY | E3: Aide/Page | F3: 6 | G3: pages | H3: $8.26 | I3: =IF(J3>0,"Y"," N") -> N | K3: 9 | L3: No
A4: 6 | B4: COVENTRY | C4: COV | D4: COVENTRY PUBLIC LIBRARY | E4: Aide/Page | F4: 2 | G4: Library Aides | H4: $11.76 | I4: =IF(J4>0,"Y"," N") -> N | K4: 15 | L4: No
A5: 7 | B5: CRANSTON | C5: CRA | D5: CRANSTON PUBLIC LIBRARY | E5: Aide/Page | F5: 3 | G5: Page | H5: $9.00 | I5: =IF(J5>0,"Y"," N") -> N | K5: 8 | L5: No
A6: 7 | B6: CRANSTON | C6: CRA | D6: CRANSTON PUBLIC LIBRARY | E6: Aide/Page | F6: 1 | G6: Page | H6: $9.00 | I6: =IF(J6>0,"Y"," N") -> N | K6: 20 | L6: No
A7: 5 | B7: CHARLESTOWN | C7: CHA | D7: CROSS' MILLS PUBLIC LIBRARY | E7: Aide/Page | F7: 1 | G7: Shelver | H7: $10.00 | I7: =IF(J7>0,"Y","N") -> N | K7: 11 | L7: No
A8: 5 | B8: CHARLESTOWN | C8: CHA | D8: CROSS' MILLS PUBLIC LIBRARY | E8: Aide/Page | F8: 1 | G8: Shelver | H8: $8.50 | I8: =IF(J8>0,"Y","N") -> N | K8: 6 | L8: No
A9: 8 | B9: CUMBERLAND | C9: CUM | D9: CUMBERLAND PUBLIC LIBRARY | E9: Aide/Page | F9: 1 | G9: Part-time Library Page | H9: $10.51 | I9: =IF(J9>0,"Y"," N") -> N | K9: 15 | L9: No
A10: 8 | B10: CUMBERLAND | C10: CUM | D10: CUMBERLAND PUBLIC LIBRARY | E10: Aide/Page | F10: 3 | G10: Part-time Library Page | H10: $9.54 | I10: =IF(J10>0,"Y"," N") -> N | K10: 15 | L10: No
A11: 9 | B11: EAST GREENWICH | C11: EGR | D11: EAST GREENWICH FREE LIBRARY | E11: Aide/Page | F11: 1 | G11: page | H11: $9.09 | I11: =IF(J11>0,"Y"," N") -> N | K11: 20 | L11: No
A12: 10 | B12: EAST PROVIDENCE | C12: EPL | D12: EAST PROVIDENCE PUBLIC LIBRARY | E12: Aide/Page | F12: 3 | G12: P/T 10.00 | K12: 15 | L12: No
A13: 30 | B13: SMITHFIELD | C13: ESM | D13: EAST SMITHFIELD PUBLIC LIBRARY | E13: Aide/Page | F13: 1 | G13: Aide/Page | H13: $9.00 | I13: N | J13: $6,318 | K13: 13.5 | L13: No
A14: 30 | B14: SMITHFIELD | C14: ESM | D14: EAST SMITHFIELD PUBLIC LIBRARY | E14: Aide/Page | F14: 1 | G14: Aide/Page | H14: $9.00 | I14: N | J14: $7,488 | K14: 16 | L14: No
A15: 30 | B15: SMITHFIELD | C15: ESM | D15: EAST SMITHFIELD PUBLIC LIBRARY | E15: Aide/Page | F15: 1 | G15: Aide/Page | H15: $9.00 | I15: N | J15: $7,020 | K15: 14 | L15: No
A16: 30 | B16: SMITHFIELD | C16: ESM | D16: EAST SMITHFIELD PUBLIC LIBRARY | E16: Aide/Page | F16: 1 | G16: Aide/Page | H16: $9.33 | I16: N | J16: $10,188 | K16: 21 | L16: No
A17: 32 | B17: TIVERTON | C17: TIV | D17: ESSEX PUBLIC LIBRARY | E17: Aide/Page | F17: 3 | G17: Page | H17: $8.75 | I17: =IF(J17>0,"Y"," N") -> N | K17: 9 | L17: No
A18: 30 | B18: SMITHFIELD | C18: GVL | D18: GREENVILLE PUBLIC LIBRARY | E18: Aide/Page | F18: 1 | G18: Library Page | H18: =IF(J18>0,(J18/(K18*52))," ") -> $9.00 | I18: Y | J18: $3,510 | K18: 7.5 | L18: No
A19: 30 | B19: SMITHFIELD | C19: GVL | D19: GREENVILLE PUBLIC LIBRARY | E19: Aide/Page | F19: 1 | G19: Library Page | H19: =IF(J19>0,(J19/(K19*52))," ") -> $9.00 | I19: Y | J19: $4,212 | K19: 9 | L19: No
A20: 30 | B20: SMITHFIELD | C20: GVL | D20: GREENVILLE PUBLIC LIBRARY | E20: Aide/Page | F20: 1 | G20: Library Page | H20: =IF(J20>0,(J20/(K20*52))," ") -> $10.50 | I20: Y | J20: $4,095 | K20: 7.5 | L20: No
A21: 12 | B21: GLOCESTER | C21: HAR | D21: HARMONY LIBRARY | E21: Aide/Page | F21: 2 | G21: Page | H21: $9.27 | I21: N | K21: 4 | L21: No
A22: 14 | B22: JAMESTOWN | C22: JAM | D22: JAMESTOWN PHILOMENIAN LIBRARY | E22: Aide/Page | F22: 1 | G22: aide | H22: $9.00 | I22: N | K22: 12 | L22: No
A23: 3 | B23: BURRILLVILLE | C23: BUR | D23: JESSE M. SMITH MEMORIAL LIBRARY | E23: Aide/Page | F23: 2 | G23: Page | H23: $9.00 | I23: N | K23: 14 | L23: No
A24: 16 | B24: LINCOLN | C24: LIN | D24: LINCOLN PUBLIC LIBRARY | E24: Aide/Page | F24: 1 | G24: Page | H24: $9.00 | I24: N | K24: 18 | L24: No
A25: 16 | B25: LINCOLN | C25: LIN | D25: LINCOLN PUBLIC LIBRARY | E25: Aide/Page | F25: 1 | G25: Page | H25: $9.00 | I25: N | K25: 9 | L25: No
A26: 16 | B26: LINCOLN | C26: LIN | D26: LINCOLN PUBLIC LIBRARY | E26: Aide/Page | F26: 1 | G26: Page | H26: $9.00 | I26: N | K26: 8 | L26: No
A27: 15 | B27: JOHNSTON | C27: JOH | D27: MARIAN J. MOHR MEMORIAL LIBRARY | E27: Aide/Page | F27: 1 | G27: Library Aide | H27: $9.00 | I27: N | K27: 19 | L27: No
A28: 19 | B28: NARRAGANSETT | C28: NAR | D28: MAURY LOONTJENS MEMORIAL LIBRARY (NARRAGANSETT) | E28: Aide/Page | F28: 1 | G28: Library Page | H28: $9.00 | I28: N | K28: 16 | L28: No
A29: 21 | B29: NEWPORT | C29: NPT | D29: NEWPORT PUBLIC LIBRARY | E29: Aide/Page | F29: 9 | G29: Page | H29: $9.50 | I29: N | K29: 120 | L29: No
A30: 22 | B30: NORTH KINGSTOWN | C30: NKI | D30: NORTH KINGSTOWN FREE LIBRARY | E30: Aide/Page | F30: 1 | G30: Senior Library Clerk | H30: =IF(J30>0,(J30/(K30*52))," ") -> $17.31 | I30: Y | J30: $31,501 | K30: 35 | L30: Yes
A31: 22 | B31: NORTH KINGSTOWN | C31: NKI | D31: NORTH KINGSTOWN FREE LIBRARY | E31: Aide/Page | F31: 1 | G31: Library Clerk | H31: $15.91 | I31: =IF(J31>0,"Y"," N") -> N | K31: 30 | L31: Yes
A32: 22 | B32: NORTH KINGSTOWN | C32: NKI | D32: NORTH KINGSTOWN FREE LIBRARY | E32: Aide/Page | F32: 4 | G32: Intern | H32: $13.00 | I32: N | K32: 10 | L32: No
A33: 25 | B33: PAWTUCKET | C33: PAW | D33: PAWTUCKET PUBLIC LIBRARY | E33: Aide/Page | F33: 3 | G33: Library Senior Page | H33: $11.37 | I33: Y | J33: $11,234 | K33: 19 | L33: No
A34: 25 | B34: PAWTUCKET | C34: PAW | D34: PAWTUCKET PUBLIC LIBRARY | E34: Aide/Page | F34: 2 | G34: Library Page | H34: $10.50 | I34: Y | J34: $10,379 | K34: 19 | L34: No
A35: 27 | B35: PROVIDENCE | C35: PRO | D35: PROVIDENCE PUBLIC LIBRARY | E35: Aide/Page | F35: 1 | G35: Library Outreach | H35: =IF(J35>0,(J35/(K35*52))," ") -> $10.00 | I35: Y | J35: $4,160 | K35: 8 | L35: No
A36: 2 | B36: BRISTOL | C36: BRI | D36: ROGERS FREE LIBRARY | E36: Aide/Page | F36: 2 | G36: Page | H36: $8.69 | I36: N | K36: 10 | L36: No
A37: 31 | B37: SOUTH KINGSTOWN | C37: SKI | D37: SOUTH KINGSTOWN PUBLIC LIBRARY | E37: Aide/Page | F37: 2 | G37: Aide | H37: $9.00 | I37: N | K37: 10 | L37: No
A38: 31 | B38: SOUTH KINGSTOWN | C38: SKI | D38: SOUTH KINGSTOWN PUBLIC LIBRARY | E38: Aide/Page | F38: 2 | G38: Aide | H38: $9.00 | I38: N | K38: 8 | L38: No
A39: 31 | B39: SOUTH KINGSTOWN | C39: SKI | D39: SOUTH KINGSTOWN PUBLIC LIBRARY | E39: Aide/Page | F39: 1 | G39: Aide | H39: $9.00 | I39: N | K39: 12.5 | L39: No
A40: 31 | B40: SOUTH KINGSTOWN | C40: SKI | D40: SOUTH KINGSTOWN PUBLIC LIBRARY | E40: Aide/Page | F40: 2 | G40: Aide | H40: $9.00 | I40: N | K40: 5 | L40: No
A41: 34 | B41: WARWICK | C41: WAR | D41: WARWICK PUBLIC LIBRARY | E41: Aide/Page | F41: 1 | G41: Page | H41: $11.81 | I41: N | K41: 13 | L41: No
A42: 34 | B42: WARWICK | C42: WAR | D42: WARWICK PUBLIC LIBRARY | E42: Aide/Page | F42: 1 | G42: Page | H42: $11.81 | I42: N | K42: 8 | L42: No
A43: 34 | B43: WARWICK | C43: WAR | D43: WARWICK PUBLIC LIBRARY | E43: Aide/Page | F43: 2 | G43: Page | H43: $11.81 | I43: N | K43: 16 | L43: No
A44: 34 | B44: WARWICK | C44: WAR | D44: WARWICK PUBLIC LIBRARY | E44: Aide/Page | F44: 1 | G44: Page | H44: $11.81 | I44: N | K44: 11 | L44: No
A45: 34 | B45: WARWICK | C45: WAR | D45: WARWICK PUBLIC LIBRARY | E45: Aide/Page | F45: 1 | G45: Page | H45: $11.81 | I45: N | K45: 10 | L45: No
A46: 37 | B46: WESTERLY | C46: WES | D46: WESTERLY PUBLIC LIBRARY | E46: Aide/Page | F46: 2 | G46: Pages | I46: Y | J46: $7,918 | L46: No
A47: 38 | B47: WOONSOCKET | C47: WNS | D47: WOONSOCKET HARRIS PUBLIC LIBRARY | E47: Aide/Page | F47: 1 | G47: Library Page | H47: $9.00 | I47: N | K47: 16 | L47: No
A48: 38 | B48: WOONSOCKET | C48: WNS | D48: WOONSOCKET HARRIS PUBLIC LIBRARY | E48: Aide/Page | F48: 4 | G48: Library Page | H48: $8.10 | I48: N | K48: 12 | L48: No
A49: 6 | B49: COVENTRY | C49: COV | D49: COVENTRY PUBLIC LIBRARY | E49: Branch Librarian | F49: 1 | G49: Part-time Branch Librarian | H49: $18.03 | I49: N | K49: 18 | L49: Yes
A50: 7 | B50: CRANSTON | C50: CRA | D50: CRANSTON PUBLIC LIBRARY | E50: Branch Librarian | F50: 1 | G50: Branch Librarian | H50: =IF(J50>0,(J50/(K50*52))," ") -> $36.03 | I50: Y | J50: $65,582 | K50: 35 | L50: Yes
A51: 7 | B51: CRANSTON | C51: CRA | D51: CRANSTON PUBLIC LIBRARY | E51: Branch Librarian | F51: 1 | G51: Branch Librarian | H51: =IF(J51>0,(J51/(K51*52))," ") -> $29.50 | I51: Y | J51: $53,689 | K51: 35 | L51: Yes
A52: 7 | B52: CRANSTON | C52: CRA | D52: CRANSTON PUBLIC LIBRARY | E52: Branch Librarian | F52: 1 | G52: Branch Librarian | H52: =IF(J52>0,(J52/(K52*52))," ") -> $32.80 | I52: Y | J52: $59,691 | K52: 35 | L52: Yes
A53: 7 | B53: CRANSTON | C53: CRA | D53: CRANSTON PUBLIC LIBRARY | E53: Branch Librarian | F53: 1 | G53: Branch Librarian | H53: =IF(J53>0,(J53/(K53*52))," ") -> $30.62 | I53: Y | J53: $55,728 | K53: 35 | L53: Yes
A54: 10 | B54: EAST PROVIDENCE | C54: EPL | D54: EAST PROVIDENCE PUBLIC LIBRARY | E54: Branch Librarian | F54: 1 | G54: Branch Librarian | H54: =IF(J54>0,(J54/(K54*52))," ") -> $31.05 | I54: Y | J54: $56,507 | K54: 35 | L54: Yes
A55: 32 | B55: TIVERTON | C55: TIV | D55: ESSEX PUBLIC LIBRARY | E55: Branch Librarian | F55: 1 | G55: Branch Librarian | H55: $17.88 | I55: N | K55: 35 | L55: No
A56: 27 | B56: PROVIDENCE | C56: PCL | D56: PROVIDENCE COMMUNITY LIBRARY | E56: Branch Librarian | F56: 6 | G56: Library Manager | H56: =IF(J56>0,(J56/(K56*52))," ") -> $25.56 | I56: Y | J56: $49,834 | K56: 37.5 | L56: Yes
A57: 31 | B57: SOUTH KINGSTOWN | C57: SKI | D57: SOUTH KINGSTOWN PUBLIC LIBRARY | E57: Branch Librarian | F57: 1 | G57: Branch Librarian | H57: =IF(J57>0,(J57/(K57*52))," ") -> $27.90 | I57: Y | J57: $50,773 | K57: 35 | L57: Yes
A58: 34 | B58: WARWICK | C58: WAR | D58: WARWICK PUBLIC LIBRARY | E58: Branch Librarian | F58: 3 | G58: Library Technician | H58: =IF(J58>0,(J58/(K58*52))," ") -> $20.74 | I58: Y | J58: $37,755 | K58: 35 | L58: No
A59: 22 | B59: NORTH KINGSTOWN | C59: WIL | D59: WILLETT FREE LIBRARY | E59: Branch Librarian | F59: 1 | G59: Librarian | H59: $15.00 | I59: Y | J59: $8,745 | K59: 11.5 | L59: Yes
A60: 1 | B60: BARRINGTON | C60: BAR | D60: BARRINGTON PUBLIC LIBRARY | E60: Buildings/Ground Staff | F60: 1 | G60: head custodian | H60: =IF(J60>0,(J60/(K60*52))," ") -> $22.77 | I60: Y | J60: $41,449 | K60: 35 | L60: No
A61: 1 | B61: BARRINGTON | C61: BAR | D61: BARRINGTON PUBLIC LIBRARY | E61: Buildings/Ground Staff | F61: 3 | G61: custodians | H61: $10.82 | K61: 12 | L61: No
A62: 6 | B62: COVENTRY | C62: COV | D62: COVENTRY PUBLIC LIBRARY | E62: Buildings/Ground Staff | F62: 1 | G62: Building Maintenance | H62: =IF(J62>0,(J62/(K62*52))," ") -> $20.10 | I62: =IF(J62>0,"Y"," N") -> Y | J62: $20,901 | K62: 20 | L62: No
A63: 6 | B63: COVENTRY | C63: COV | D63: COVENTRY PUBLIC LIBRARY | E63: Buildings/Ground Staff | F63: 1 | G63: Custodian | H63: =IF(J63>0,(J63/(K63*52))," ") -> $17.22 | I63: Y | J63: $17,913 | K63: 20 | L63: No
A64: 7 | B64: CRANSTON | C64: CRA | D64: CRANSTON PUBLIC LIBRARY | E64: Buildings/Ground Staff | F64: 1 | G64: Custodian | H64: =IF(J64>0,(J64/(K64*52))," ") -> $20.98 | I64: Y | J64: $38,178 | K64: 35 | L64: No
A65: 7 | B65: CRANSTON | C65: CRA | D65: CRANSTON PUBLIC LIBRARY | E65: Buildings/Ground Staff | F65: 1 | G65: Driver | H65: =IF(J65>0,(J65/(K65*52))," ") -> $15.67 | I65: Y | J65: $20,374 | K65: 25 | L65: No
A66: 7 | B66: CRANSTON | C66: CRA | D66: CRANSTON PUBLIC LIBRARY | E66: Buildings/Ground Staff | F66: 1 | G66: Custodian | H66: $10.00 | I66: N | K66: 14 | L66: No
A67: 7 | B67: CRANSTON | C67: CRA | D67: CRANSTON PUBLIC LIBRARY | E67: Buildings/Ground Staff | F67: 2 | G67: Custodian | H67: $10.00 | I67: N | K67: 25 | L67: No
A68: 7 | B68: CRANSTON | C68: CRA | D68: CRANSTON PUBLIC LIBRARY | E68: Buildings/Ground Staff | F68: 1 | G68: Security | H68: $9.00 | I68: N | K68: 12 | L68: No
A69: 7 | B69: CRANSTON | C69: CRA | D69: CRANSTON PUBLIC LIBRARY | E69: Buildings/Ground Staff | F69: 1 | G69: Custodian | H69: $9.35 | I69: N | K69: 9 | L69: No
A70: 7 | B70: CRANSTON | C70: CRA | D70: CRANSTON PUBLIC LIBRARY | E70: Buildings/Ground Staff | F70: 1 | G70: Custodian | H70: $12.35 | I70: N | K70: 20 | L70: No
A71: 7 | B71: CRANSTON | C71: CRA | D71: CRANSTON PUBLIC LIBRARY | E71: Buildings/Ground Staff | F71: 1 | G71: Security | H71: $10.10 | I71: N | K71: 3 | L71: No
A72: 7 | B72: CRANSTON | C72: CRA | D72: CRANSTON PUBLIC LIBRARY | E72: Buildings/Ground Staff | F72: 1 | G72: Security | H72: $9.35 | I72: N | K72: 5 | L72: No
A73: 5 | B73: CHARLESTOWN | C73: CHA | D73: CROSS' MILLS PUBLIC LIBRARY | E73: Buildings/Ground Staff | F73: 1 | G73: Maintenance | H73: $15.59 | I73: =IF(J73>0,"Y","N") -> N | K73: 12 | L73: No
A74: 5 | B74: CHARLESTOWN | C74: CHA | D74: CROSS' MILLS PUBLIC LIBRARY | E74: Buildings/Ground Staff | F74: 1 | G74: Custodian | H74: $20.18 | I74: =IF(J74>0,"Y","N") -> N | K74: 4 | L74: No
A75: 8 | B75: CUMBERLAND | C75: CUM | D75: CUMBERLAND PUBLIC LIBRARY | E75: Buildings/Ground Staff | F75: 1 | G75: Facility Manager | H75: $20.43 | I75: =IF(J75>0,"Y"," N") -> N | K75: 40 | L75: No
A76: 8 | B76: CUMBERLAND | C76: CUM | D76: CUMBERLAND PUBLIC LIBRARY | E76: Buildings/Ground Staff | F76: 1 | G76: Part-time Custodian | H76: $16.91 | I76: =IF(J76>0,"Y"," N") -> N | K76: 18 | L76: No
A77: 8 | B77: CUMBERLAND | C77: CUM | D77: CUMBERLAND PUBLIC LIBRARY | E77: Buildings/Ground Staff | F77: 1 | G77: Part-time Custodial Assistant | H77: $16.25 | I77: =IF(J77>0,"Y"," N") -> N | K77: 19.5 | L77: No
A78: 8 | B78: CUMBERLAND | C78: CUM | D78: CUMBERLAND PUBLIC LIBRARY | E78: Buildings/Ground Staff | F78: 1 | G78: Part-time Custodial Assistant | H78: $15.70 | I78: =IF(J78>0,"Y"," N") -> N | K78: 8 | L78: No
A79: 9 | B79: EAST GREENWICH | C79: EGR | D79: EAST GREENWICH FREE LIBRARY | E79: Buildings/Ground Staff | F79: 1 | G79: maintenace | H79: $20.22 | I79: =IF(J79>0,"Y"," N") -> N | K79: 15 | L79: No
A80: 30 | B80: SMITHFIELD | C80: ESM | D80: EAST SMITHFIELD PUBLIC LIBRARY | E80: Buildings/Ground Staff | F80: 1 | G80: Custodian | H80: $13.98 | I80: N | J80: $12,358 | K80: 17 | L80: No
A81: 29 | B81: SCITUATE | C81: HPE | D81: HOPE LIBRARY | E81: Buildings/Ground Staff | F81: 1 | G81: Custodian | H81: $11.83 | I81: =IF(J81>0,"Y"," N") -> N | K81: 10 | L81: No
A82: 29 | B82: SCITUATE | C82: HPE | D82: HOPE LIBRARY | E82: Buildings/Ground Staff | F82: 1 | G82: Custodian | H82: $10.75 | I82: =IF(J82>0,"Y"," N") -> N | K82: 10 | L82: No
A83: 3 | B83: BURRILLVILLE | C83: BUR | D83: JESSE M. SMITH MEMORIAL LIBRARY | E83: Buildings/Ground Staff | F83: 1 | G83: Building and Grounds Supervisor | H83: $19.69 | I83: =IF(J83>0,"Y"," N") -> N | K83: 40 | L83: No
A84: 16 | B84: LINCOLN | C84: LIN | D84: LINCOLN PUBLIC LIBRARY | E84: Buildings/Ground Staff | F84: 1 | G84: Maintenance | H84: $17.50 | I84: =IF(J84>0,"Y"," N") -> N | K84: 23.5 | L84: No
A85: 15 | B85: JOHNSTON | C85: JOH | D85: MARIAN J. MOHR MEMORIAL LIBRARY | E85: Buildings/Ground Staff | F85: 1 | G85: Custodian | H85: $9.00 | I85: =IF(J85>0,"Y"," N") -> N | K85: 19 | L85: No
A86: 21 | B86: NEWPORT | C86: NPT | D86: NEWPORT PUBLIC LIBRARY | E86: Buildings/Ground Staff | F86: 1 | G86: Property Manager | H86: =IF(J86>0,(J86/(K86*52))," ") -> $25.93 | I86: Y | J86: $50,557 | K86: 37.5 | L86: No
A87: 21 | B87: NEWPORT | C87: NPT | D87: NEWPORT PUBLIC LIBRARY | E87: Buildings/Ground Staff | F87: 1 | G87: Custodian | H87: =IF(J87>0,(J87/(K87*52))," ") -> $21.92 | I87: Y | J87: $42,739 | K87: 37.5 | L87: No
A88: 21 | B88: NEWPORT | C88: NPT | D88: NEWPORT PUBLIC LIBRARY | E88: Buildings/Ground Staff | F88: 1 | G88: Custodian/Security Guard | H88: =IF(J88>0,(J88/(K88*52))," ") -> $17.47 | I88: Y | J88: $34,072 | K88: 37.5 | L88: No
A89: 21 | B89: NEWPORT | C89: NPT | D89: NEWPORT PUBLIC LIBRARY | E89: Buildings/Ground Staff | F89: 1 | G89: Custodian part time | H89: $14.42 | I89: =IF(J89>0,"Y"," N") -> N | K89: 25 | L89: No
A90: 22 | B90: NORTH KINGSTOWN | C90: NKI | D90: NORTH KINGSTOWN FREE LIBRARY | E90: Buildings/Ground Staff | F90: 1 | G90: Morning Custodian | H90: $19.49 | I90: N | K90: 20 | L90: No
A91: 22 | B91: NORTH KINGSTOWN | C91: NKI | D91: NORTH KINGSTOWN FREE LIBRARY | E91: Buildings/Ground Staff | F91: 1 | G91: EveningCustodian | H91: $19.49 | I91: N | K91: 28 | L91: No
A92: 23 | B92: NORTH PROVIDENCE | C92: NPR | D92: NORTH PROVIDENCE UNION FREE | E92: Buildings/Ground Staff | F92: 1 | G92: Maintenance/Custodian | H92: =IF(J92>0,(J92/(K92*52))," ") -> $21.18 | I92: Y | J92: $24,784 | K92: 22.5 | L92: No
A93: 23 | B93: NORTH PROVIDENCE | C93: NPR | D93: NORTH PROVIDENCE UNION FREE | E93: Buildings/Ground Staff | F93: 1 | G93: Maintenance/Assistance | H93: $12.55 | I93: N | K93: 19.5 | L93: No
A94: 3 | B94: PASCOAG | C94: PAS | D94: PASCOAG FREE PUBLIC LIBRARY | E94: Buildings/Ground Staff | F94: 1 | G94: Janitor | H94: =IF(J94>0,(J94/(K94*52))," ") -> $13.62 | I94: Y | J94: $2,832 | K94: 4 | L94: No
A95: 25 | B95: PAWTUCKET | C95: PAW | D95: PAWTUCKET PUBLIC LIBRARY | E95: Buildings/Ground Staff | F95: 1 | G95: Custodian | H95: $15.93 | I95: Y | J95: $33,125 | K95: 40 | L95: No
A96: 25 | B96: PAWTUCKET | C96: PAW | D96: PAWTUCKET PUBLIC LIBRARY | E96: Buildings/Ground Staff | F96: 1 | G96: Security Guard | H96: $13.25 | I96: Y | J96: $8,480 | K96: 16 | L96: No
A97: 26 | B97: PORTSMOUTH | C97: POR | D97: PORTSMOUTH FREE PUBLIC LIBRARY | E97: Buildings/Ground Staff | F97: 1 | G97: Custodian | H97: $13.70 | I97: N | K97: 35 | L97: No
A98: 27 | B98: PROVIDENCE | C98: PCL | D98: PROVIDENCE COMMUNITY LIBRARY | E98: Buildings/Ground Staff | F98: 2 | G98: Maintenance Worker | H98: =IF(J98>0,(J98/(K98*52))," ") -> $27.11 | I98: Y | J98: $56,379 | K98: 40 | L98: No
A99: 27 | B99: PROVIDENCE | C99: PCL | D99: PROVIDENCE COMMUNITY LIBRARY | E99: Buildings/Ground Staff | F99: 1 | G99: Head Custodian | H99: $20.14 | I99: Y | J99: $41,891 | K99: 40 | L99: No
A100: 27 | B100: PROVIDENCE | C100: PCL | D100: PROVIDENCE COMMUNITY LIBRARY | E100: Buildings/Ground Staff | F100: 2 | G100: Custodian | H100: $15.95 | I100: Y | J100: $33,176 | K100: 40 | L100: No
A101: 27 | B101: PROVIDENCE | C101: PRO | D101: PROVIDENCE PUBLIC LIBRARY | E101: Buildings/Ground Staff | F101: 2 | G101: Maintenance Staff | H101: $27.11 | I101: Y | J101: $56,389 | K101: 40 | L101: No
A102: 27 | B102: PROVIDENCE | C102: PRO | D102: PROVIDENCE PUBLIC LIBRARY | E102: Buildings/Ground Staff | F102: 1 | G102: Security Supervisor | H102: $20.36 | I102: Y | J102: $39,702 | K102: 37.5 | L102: No
A103: 27 | B103: PROVIDENCE | C103: PRO | D103: PROVIDENCE PUBLIC LIBRARY | E103: Buildings/Ground Staff | F103: 2 | G103: Maintenance Asst. | H103: $27.11 | I103: Y | J103: $7,049 | K103: 5 | L103: No
A104: 2 | B104: BRISTOL | C104: BRI | D104: ROGERS FREE LIBRARY | E104: Buildings/Ground Staff | F104: 1 | G104: Custodian | H104: $17.22 | I104: Y | J104: $31,349 | K104: 35 | L104: No
A105: 31 | B105: SOUTH KINGSTOWN | C105: SKI | D105: SOUTH KINGSTOWN PUBLIC LIBRARY | E105: Buildings/Ground Staff | F105: 1 | G105: Facilitie Manager | H105: $21.08 | I105: Y | J105: $43,850 | K105: 40 | L105: No
A106: 31 | B106: SOUTH KINGSTOWN | C106: SKI | D106: SOUTH KINGSTOWN PUBLIC LIBRARY | E106: Buildings/Ground Staff | F106: 1 | G106: Custodian | H106: $16.00 | I106: N | K106: 12 | L106: No
A107: 31 | B107: SOUTH KINGSTOWN | C107: SKI | D107: SOUTH KINGSTOWN PUBLIC LIBRARY | E107: Buildings/Ground Staff | F107: 1 | G107: Custodian | H107: $16.41 | I107: N | K107: 2 | L107: No
A108: 34 | B108: WARWICK | C108: WAR | D108: WARWICK PUBLIC LIBRARY | E108: Buildings/Ground Staff | F108: 2 | G108: Maintenance | H108: =IF(J108>0,(J108/(K108*52))," ") -> $17.53 | I108: Y | J108: $36,465 | K108: 40 | L108: No
A109: 34 | B109: WARWICK | C109: WAR | D109: WARWICK PUBLIC LIBRARY | E109: Buildings/Ground Staff | F109: 1 | G109: Maintenance | H109: =IF(J109>0,(J109/(K109*52))," ") -> $22.97 | I109: Y | J109: $47,778 | K109: 40 | L109: No
A110: 36 | B110: WEST WARWICK | C110: WWA | D110: WEST WARWICK PUBLIC LIBRARY | E110: Buildings/Ground Staff | F110: 1 | G110: Custodian | H110: $15.76 | I110: N | K110: 35 | L110: No
A111: 37 | B111: WESTERLY | C111: WES | D111: WESTERLY PUBLIC LIBRARY | E111: Buildings/Ground Staff | F111: 1 | G111: Park Superintendent | H111: =IF(J111>0,(J111/(K111*52))," ") -> $39.75 | I111: Y | J111: $72,344 | K111: 35 | L111: No
A112: 37 | B112: WESTERLY | C112: WES | D112: WESTERLY PUBLIC LIBRARY | E112: Buildings/Ground Staff | F112: 1 | G112: Facilities Manager | H112: $33.48 | I112: Y | J112: $60,933 | K112: 35 | L112: No
A113: 37 | B113: WESTERLY | C113: WES | D113: WESTERLY PUBLIC LIBRARY | E113: Buildings/Ground Staff | F113: 2 | G113: Groundskeepers | H113: $13.75 | I113: Y | J113: $50,033 | K113: 70 | L113: No
A114: 37 | B114: WESTERLY | C114: WES | D114: WESTERLY PUBLIC LIBRARY | E114: Buildings/Ground Staff | F114: 1 | G114: Security Officer | H114: $18.26 | I114: Y | J114: $22,786 | K114: 24 | L114: No
A115: 38 | B115: WOONSOCKET | C115: WNS | D115: WOONSOCKET HARRIS PUBLIC LIBRARY | E115: Buildings/Ground Staff | F115: 1 | G115: Janitor/Security | H115: $14.38 | I115: Y | J115: $29,905 | K115: 40 | L115: No
A116: 1 | B116: BARRINGTON | C116: BAR | D116: BARRINGTON PUBLIC LIBRARY | E116: Childrens and/or Young Adult Services Librarian | F116: 1 | G116: YA librarian | H116: $28.30 | I116: Y | J116: $51,500 | K116: 35 | L116: Yes
A117: 17 | B117: LITTLE COMPTON | C117: LCO | D117: BROWNELL LIBRARY, HOME OF LITTLE COMPTON | E117: Childrens and/or Young Adult Services Librarian | F117: 1 | G117: Youth Services Librarian | H117: $19.00 | I117: N | K117: 35 | L117: Yes
A118: 6 | B118: COVENTRY | C118: COV | D118: COVENTRY PUBLIC LIBRARY | E118: Childrens and/or Young Adult Services Librarian | F118: 2 | G118: Part-time Youth Services Librarians | H118: $19.52 | I118: N | K118: 20 | L118: Yes
A119: 7 | B119: CRANSTON | C119: CRA | D119: CRANSTON PUBLIC LIBRARY | E119: Childrens and/or Young Adult Services Librarian | F119: 1 | G119: Head of Teen Services | H119: =IF(J119>0,(J119/(K119*52))," ") -> $36.03 | I119: Y | J119: $65,582 | K119: 35 | L119: Yes
A120: 7 | B120: CRANSTON | C120: CRA | D120: CRANSTON PUBLIC LIBRARY | E120: Childrens and/or Young Adult Services Librarian | F120: 2 | G120: Youth Services Librarian | H120: =IF(J120>0,(J120/(K120*52))," ") -> $30.62 | I120: Y | J120: $55,728 | K120: 35 | L120: Yes
A121: 7 | B121: CRANSTON | C121: CRA | D121: CRANSTON PUBLIC LIBRARY | E121: Childrens and/or Young Adult Services Librarian | F121: 2 | G121: Youth Services Librarian | H121: =IF(J121>0,(J121/(K121*52))," ") -> $23.73 | I121: Y | J121: $43,184 | K121: 35 | L121: Yes
A122: 7 | B122: CRANSTON | C122: CRA | D122: CRANSTON PUBLIC LIBRARY | E122: Childrens and/or Young Adult Services Librarian | F122: 1 | G122: Librarian | H122: $16.50 | I122: N | K122: 3.5 | L122: Yes
A123: 7 | B123: CRANSTON | C123: CRA | D123: CRANSTON PUBLIC LIBRARY | E123: Childrens and/or Young Adult Services Librarian | F123: 1 | G123: Librarian | H123: $16.50 | I123: N | K123: 20 | L123: Yes
A124: 8 | B124: CUMBERLAND | C124: CUM | D124: CUMBERLAND PUBLIC LIBRARY | E124: Childrens and/or Young Adult Services Librarian | F124: 1 | G124: Young Adult Reference Librarian | H124: =IF(J124>0,(J124/(K124*52))," ") -> $27.27 | I124: Y | J124: $49,631 | K124: 35 | L124: Yes
A125: 8 | B125: CUMBERLAND | C125: CUM | D125: CUMBERLAND PUBLIC LIBRARY | E125: Childrens and/or Young Adult Services Librarian | F125: 1 | G125: Part-time Children\'s Librarian | H125: $24.73 | I125: N | K125: 12.5 | L125: Yes
A126: 9 | B126: EAST GREENWICH | C126: EGR | D126: EAST GREENWICH FREE LIBRARY | E126: Childrens and/or Young Adult Services Librarian | F126: 1 | G126: childrens librarian | H126: $21.50 | I126: N | K126: 16 | L126: Yes
A127: 9 | B127: EAST GREENWICH | C127: EGR | D127: EAST GREENWICH FREE LIBRARY | E127: Childrens and/or Young Adult Services Librarian | F127: 1 | G127: children\'s librarian | H127: $18.07 | I127: N | K127: 10 | L127: No
A128: 10 | B128: EAST PROVIDENCE | C128: EPL | D128: EAST PROVIDENCE PUBLIC LIBRARY | E128: Childrens and/or Young Adult Services Librarian | F128: 1 | G128: Children\'s Librarian | H128: =IF(J128>0,(J128/(K128*52))," ") -> $31.05 | I128: Y | J128: $56,507 | K128: 35 | L128: Yes
A129: 10 | B129: EAST PROVIDENCE | C129: EPL | D129: EAST PROVIDENCE PUBLIC LIBRARY | E129: Childrens and/or Young Adult Services Librarian | F129: 1 | G129: Teen Librarian | H129: =IF(J129>0,(J129/(K129*52))," ") -> $31.05 | I129: Y | J129: $56,507 | K129: 35 | L129: Yes
A130: 30 | B130: SMITHFIELD | C130: ESM | D130: EAST SMITHFIELD PUBLIC LIBRARY | E130: Childrens and/or Young Adult Services Librarian | F130: 1 | G130: Children\'s/Young Adult Services Librarian | H130: $19.01 | I130: N | J130: $28,667 | K130: 29 | L130: No
A131: 30 | B131: SMITHFIELD | C131: ESM | D131: EAST SMITHFIELD PUBLIC LIBRARY | E131: Childrens and/or Young Adult Services Librarian | F131: 1 | G131: Children\'s/Young Adult Services Librarian | H131: $17.27 | I131: N | J131: $13,471 | K131: 15 | L131: Yes
A132: 32 | B132: TIVERTON | C132: TIV | D132: ESSEX PUBLIC LIBRARY | E132: Childrens and/or Young Adult Services Librarian | F132: 1 | G132: Youth Services Librarian | H132: $25.25 | I132: =IF(J132>0,"Y"," N") -> N | K132: 35 | L132: Yes
A133: 32 | B133: TIVERTON | C133: TIV | D133: ESSEX PUBLIC LIBRARY | E133: Childrens and/or Young Adult Services Librarian | F133: 1 | G133: Children\'s Services Librarian | H133: $25.25 | I133: N | K133: 35 | L133: No
A134: 10.5 | B134: EXETER | C134: EXE | D134: EXETER PUBLIC LIBRARY | E134: Childrens and/or Young Adult Services Librarian | F134: 1 | G134: Youth Services / Assistant Director | H134: $22.60 | I134: N | K134: 25 | L134: No
A135: 33 | B135: WARREN | C135: WRR | D135: GEORGE HAIL FREE LIBRARY | E135: Childrens and/or Young Adult Services Librarian | F135: 1 | G135: Children\'s Librarian | H135: =IF(J135>0,(J135/(K135*52))," ") -> $21.86 | I135: Y | J135: $43,204 | K135: 38 | L135: No
A136: 12 | B136: GLOCESTER | C136: GLO | D136: GLOCESTER MANTON FREE PUBLIC LIBRARY | E136: Childrens and/or Young Adult Services Librarian | F136: 1 | G136: Children\'s Assistant | H136: $15.35 | I136: N | K136: 30 | L136: No
A137: 30 | B137: SMITHFIELD | C137: GVL | D137: GREENVILLE PUBLIC LIBRARY | E137: Childrens and/or Young Adult Services Librarian | F137: 1 | G137: Children\'s | H137: =IF(J137>0,(J137/(K137*52))," ") -> $28.30 | I137: Y | J137: $51,506 | K137: 35 | L137: Yes
A138: 30 | B138: SMITHFIELD | C138: GVL | D138: GREENVILLE PUBLIC LIBRARY | E138: Childrens and/or Young Adult Services Librarian | F138: 1 | G138: Young Adult | H138: =IF(J138>0,(J138/(K138*52))," ") -> $24.36 | I138: Y | J138: $44,335 | K138: 35 | L138: Yes
A139: 30 | B139: SMITHFIELD | C139: GVL | D139: GREENVILLE PUBLIC LIBRARY | E139: Childrens and/or Young Adult Services Librarian | F139: 1 | G139: Children\'s Librarian Assistant | H139: =IF(J139>0,(J139/(K139*52))," ") -> $19.94 | I139: Y | J139: $28,000 | K139: 27 | L139: Yes
A140: 30 | B140: SMITHFIELD | C140: GVL | D140: GREENVILLE PUBLIC LIBRARY | E140: Childrens and/or Young Adult Services Librarian | F140: 1 | G140: Children\'s Reference Librarian | H140: =IF(J140>0,(J140/(K140*52))," ") -> $20.80 | I140: Y | J140: $16,224 | K140: 15 | L140: Yes
A141: 12 | B141: GLOCESTER | C141: HAR | D141: HARMONY LIBRARY | E141: Childrens and/or Young Adult Services Librarian | F141: 1 | G141: Glocester Childrens Services Coordinator | H141: =IF(J141>0,(J141/(K141*52))," ") -> $23.14 | I141: Y | J141: $42,116 | K141: 35 | L141: Yes
A142: 29 | B142: SCITUATE | C142: HPE | D142: HOPE LIBRARY | E142: Childrens and/or Young Adult Services Librarian | F142: 1 | G142: Children\'s Librarian | H142: $22.00 | I142: N | K142: 35 | L142: Yes
A143: 29 | B143: SCITUATE | C143: HPE | D143: HOPE LIBRARY | E143: Childrens and/or Young Adult Services Librarian | F143: 1 | G143: Young Adult Librarian | H143: $17.50 | I143: N | K143: 24 | L143: No
A144: 29 | B144: SCITUATE | C144: HPE | D144: HOPE LIBRARY | E144: Childrens and/or Young Adult Services Librarian | F144: 1 | G144: Children\'s Librarian | H144: $16.80 | I144: N | K144: 6.5 | L144: Yes
A145: 20 | B145: NEW SHOREHAM | C145: NSH | D145: ISLAND FREE LIBRARY | E145: Childrens and/or Young Adult Services Librarian | F145: 1 | G145: Childrens Services | H145: $13.35 | I145: N | K145: 38 | L145: No
A146: 14 | B146: JAMESTOWN | C146: JAM | D146: JAMESTOWN PHILOMENIAN LIBRARY | E146: Childrens and/or Young Adult Services Librarian | F146: 1 | G146: Children\'s Librarian | H146: $21.18 | I146: N | K146: 40 | L146: Yes
A147: 3 | B147: BURRILLVILLE | C147: BUR | D147: JESSE M. SMITH MEMORIAL LIBRARY | E147: Childrens and/or Young Adult Services Librarian | F147: 1 | G147: Head Children\'s Librarian | H147: $22.52 | I147: N | K147: 35 | L147: Yes
A148: 3 | B148: BURRILLVILLE | C148: BUR | D148: JESSE M. SMITH MEMORIAL LIBRARY | E148: Childrens and/or Young Adult Services Librarian | F148: 1 | G148: Children\'s Librarian | H148: $19.42 | I148: N | K148: 19 | L148: Yes
A149: 11 | B149: FOSTER | C149: FOS | D149: LIBRARIES OF FOSTER | E149: Childrens and/or Young Adult Services Librarian | F149: 1 | G149: Youth Services Librarian | H149: $15.00 | I149: N | K149: 36 | L149: No
A150: 16 | B150: LINCOLN | C150: LIN | D150: LINCOLN PUBLIC LIBRARY | E150: Childrens and/or Young Adult Services Librarian | F150: 1 | G150: Children\'s Librarian | H150: $26.01 | I150: N | K150: 35 | L150: Yes
A151: 16 | B151: LINCOLN | C151: LIN | D151: LINCOLN PUBLIC LIBRARY | E151: Childrens and/or Young Adult Services Librarian | F151: 1 | G151: Reference LibrarianChildren\'s Librarian | H151: $17.81 | I151: N | K151: 16 | L151: Yes
A152: 16 | B152: LINCOLN | C152: LIN | D152: LINCOLN PUBLIC LIBRARY | E152: Childrens and/or Young Adult Services Librarian | F152: 1 | G152: Reference LibrarianChildren\'s Librarian | H152: $18.79 | I152: N | K152: 12 | L152: Yes
A153: 35 | B153: WEST GREENWICH | C153: WGR | D153: LOUTTIT MEMORIAL LIBRARY | E153: Childrens and/or Young Adult Services Librarian | F153: 1 | G153: Children\'s Librarian | H153: $21.22 | I153: N | K153: 19 | L153: Yes
A154: 15 | B154: JOHNSTON | C154: JOH | D154: MARIAN J. MOHR MEMORIAL LIBRARY | E154: Childrens and/or Young Adult Services Librarian | F154: 1 | G154: Children\'s Librarian | H154: =IF(J154>0,(J154/(K154*52))," ") -> $21.98 | I154: Y | J154: $40,000 | K154: 35 | L154: Yes
A155: 15 | B155: JOHNSTON | C155: JOH | D155: MARIAN J. MOHR MEMORIAL LIBRARY | E155: Childrens and/or Young Adult Services Librarian | F155: 1 | G155: Young Adult Librarian | H155: $18.00 | I155: N | K155: 19 | L155: Yes
A156: 19 | B156: NARRAGANSETT | C156: NAR | D156: MAURY LOONTJENS MEMORIAL LIBRARY (NARRAGANSETT) | E156: Childrens and/or Young Adult Services Librarian | F156: 1 | G156: Children\'s Librarian | H156: =IF(J156>0,(J156/(K156*52))," ") -> $24.52 | I156: Y | J156: $51,002 | K156: 40 | L156: Yes
A157: 21 | B157: NEWPORT | C157: NPT | D157: NEWPORT PUBLIC LIBRARY | E157: Childrens and/or Young Adult Services Librarian | F157: 1 | G157: Children\'s Librarian | H157: =IF(J157>0,(J157/(K157*52))," ") -> $25.12 | I157: Y | J157: $45,725 | K157: 35 | L157: Yes
A158: 21 | B158: NEWPORT | C158: NPT | D158: NEWPORT PUBLIC LIBRARY | E158: Childrens and/or Young Adult Services Librarian | F158: 1 | G158: Young Adult Librarian | H158: $24.33 | I158: =IF(J158>0,"Y"," N") -> N | K158: 18 | L158: Yes
A159: 21 | B159: NEWPORT | C159: NPT | D159: NEWPORT PUBLIC LIBRARY | E159: Childrens and/or Young Adult Services Librarian | F159: 1 | G159: Children\'s Librarian Part Time | H159: $24.33 | I159: =IF(J159>0,"Y"," N") -> N | K159: 18 | L159: Yes
A160: 21 | B160: NEWPORT | C160: NPT | D160: NEWPORT PUBLIC LIBRARY | E160: Childrens and/or Young Adult Services Librarian | F160: 1 | G160: Young Adult Librarian | H160: $24.33 | I160: =IF(J160>0,"Y"," N") -> N | K160: 20 | L160: Yes
A161: 22 | B161: NORTH KINGSTOWN | C161: NKI | D161: NORTH KINGSTOWN FREE LIBRARY | E161: Childrens and/or Young Adult Services Librarian | F161: 1 | G161: Young Adult/Assistant Children\'s Librarian | H161: =IF(J161>0,(J161/(K161*52))," ") -> $21.38 | I161: Y | J161: $38,918 | K161: 35 | L161: Yes
A162: 23 | B162: NORTH PROVIDENCE | C162: NPR | D162: NORTH PROVIDENCE UNION FREE | E162: Childrens and/or Young Adult Services Librarian | F162: 1 | G162: Children\'s Program Assistant | H162: $14.82 | I162: =IF(J162>0,"Y"," N") -> N | K162: 19 | L162: Yes
A163: 29 | B163: SCITUATE | C163: SCI | D163: NORTH SCITUATE PUBLIC LIBRARY | E163: Childrens and/or Young Adult Services Librarian | F163: 1 | G163: Youth Services Librarian | H163: $25.00 | I163: N | K163: 23 | L163: Yes
A164: 24 | B164: NORTH SMITHFIELD | C164: NSM | D164: NORTH SMITHFIELD PUBLIC LIBRARY | E164: Childrens and/or Young Adult Services Librarian | F164: 1 | G164: YOUTH SERVICES | H164: =IF(J164>0,(J164/(K164*52))," ") -> $24.41 | I164: Y | J164: $44,426 | K164: 35 | L164: Yes
A165: 25 | B165: PAWTUCKET | C165: PAW | D165: PAWTUCKET PUBLIC LIBRARY | E165: Childrens and/or Young Adult Services Librarian | F165: 1 | G165: Children\'s Librarian | H165: $28.05 | I165: Y | J165: $51,060 | K165: 35 | L165: Yes
A166: 25 | B166: PAWTUCKET | C166: PAW | D166: PAWTUCKET PUBLIC LIBRARY | E166: Childrens and/or Young Adult Services Librarian | F166: 1 | G166: Children\'s Librarian | H166: $28.05 | I166: Y | J166: $27,718 | K166: 19 | L166: Yes
A167: 25 | B167: PAWTUCKET | C167: PAW | D167: PAWTUCKET PUBLIC LIBRARY | E167: Childrens and/or Young Adult Services Librarian | F167: 1 | G167: Teen Librarian | H167: $28.05 | I167: Y | J167: $51,060 | K167: 35 | L167: Yes
A168: 26 | B168: PORTSMOUTH | C168: POR | D168: PORTSMOUTH FREE PUBLIC LIBRARY | E168: Childrens and/or Young Adult Services Librarian | F168: 1 | G168: Children\'s Librarian | H168: =IF(J168>0,(J168/(K168*52))," ") -> $24.70 | I168: Y | J168: $44,946 | K168: 35 | L168: Yes
A169: 27 | B169: PROVIDENCE | C169: PCL | D169: PROVIDENCE COMMUNITY LIBRARY | E169: Childrens and/or Young Adult Services Librarian | F169: 3 | G169: Children\'s Librarian | H169: $23.33 | I169: Y | J169: $45,487 | K169: 37.5 | L169: Yes
A170: 27 | B170: PROVIDENCE | C170: PRO | D170: PROVIDENCE PUBLIC LIBRARY | E170: Childrens and/or Young Adult Services Librarian | F170: 1 | G170: Early Childhood Specialist | H170: $29.61 | I170: Y | J170: $57,740 | K170: 37.5 | L170: No
A171: 2 | B171: BRISTOL | C171: BRI | D171: ROGERS FREE LIBRARY | E171: Childrens and/or Young Adult Services Librarian | F171: 1 | G171: Youth services librarian | H171: $23.08 | I171: Y | J171: $42,000 | K171: 35 | L171: Yes
A172: 31 | B172: SOUTH KINGSTOWN | C172: SKI | D172: SOUTH KINGSTOWN PUBLIC LIBRARY | E172: Childrens and/or Young Adult Services Librarian | F172: 3 | G172: Youth Services Librarian | H172: $25.36 | I172: Y | J172: $46,157 | K172: 35 | L172: Yes
A173: 34 | B173: WARWICK | C173: WAR | D173: WARWICK PUBLIC LIBRARY | E173: Childrens and/or Young Adult Services Librarian | F173: 1 | G173: childrens | H173: $27.34 | I173: Y | J173: $53,306 | K173: 37.5 | L173: Yes
A174: 36 | B174: WEST WARWICK | C174: WWA | D174: WEST WARWICK PUBLIC LIBRARY | E174: Childrens and/or Young Adult Services Librarian | F174: 1 | G174: Young Adult Services Librarian | H174: $17.45 | I174: Y | J174: $31,751 | K174: 35 | L174: Yes
A175: 37 | B175: WESTERLY | C175: WES | D175: WESTERLY PUBLIC LIBRARY | E175: Childrens and/or Young Adult Services Librarian | F175: 1 | G175: Children\'s Librarian | H175: $25.80 | I175: Y | J175: $46,955 | K175: 35 | L175: Yes
A176: 37 | B176: WESTERLY | C176: WES | D176: WESTERLY PUBLIC LIBRARY | E176: Childrens and/or Young Adult Services Librarian | F176: 1 | G176: YA Librarian | H176: $17.13 | I176: Y | J176: $31,172 | K176: 35 | L176: Yes
A177: 38 | B177: WOONSOCKET | C177: WNS | D177: WOONSOCKET HARRIS PUBLIC LIBRARY | E177: Childrens and/or Young Adult Services Librarian | F177: 1 | G177: Youth/Adolescent Services Librarian | H177: $22.05 | I177: Y | J177: $40,133 | K177: 35 | L177: Yes
A178: 38 | B178: WOONSOCKET | C178: WNS | D178: WOONSOCKET HARRIS PUBLIC LIBRARY | E178: Childrens and/or Young Adult Services Librarian | F178: 1 | G178: Assistant Children\'s Librarian | H178: $14.08 | I178: Y | J178: $25,617 | K178: 35 | L178: No
A179: 1 | B179: BARRINGTON | C179: BAR | D179: BARRINGTON PUBLIC LIBRARY | E179: Deputy/Associate/Assistant Director | F179: 1 | G179: assistant director/head of children\'s dept | H179: $38.03 | I179: Y | J179: $69,206 | K179: 35 | L179: Yes
A180: 28 | B180: RICHMOND | C180: CLA | D180: CLARK MEMORIAL LIBRARY | E180: Deputy/Associate/Assistant Director | F180: 1 | G180: assistant director | H180: $19.21 | I180: N | K180: 14 | L180: No
A181: 6 | B181: COVENTRY | C181: COV | D181: COVENTRY PUBLIC LIBRARY | E181: Deputy/Associate/Assistant Director | F181: 1 | G181: Assistant Director | H181: =IF(J181>0,(J181/(K181*52))," ") -> $32.28 | I181: Y | J181: $58,756 | K181: 35 | L181: Yes
A182: 7 | B182: CRANSTON | C182: CRA | D182: CRANSTON PUBLIC LIBRARY | E182: Deputy/Associate/Assistant Director | F182: 1 | G182: Assistant Library Director | H182: =IF(J182>0,(J182/(K182*52))," ") -> $37.91 | I182: Y | J182: $69,000 | K182: 35 | L182: Yes
A183: 5 | B183: CHARLESTOWN | C183: CHA | D183: CROSS' MILLS PUBLIC LIBRARY | E183: Deputy/Associate/Assistant Director | F183: 1 | G183: Assistant Director | H183: =IF(J183>0,(J183/(K183*52))," ") -> $22.98 | I183: Y | J183: $41,820 | K183: 35 | L183: Yes
A184: 8 | B184: CUMBERLAND | C184: CUM | D184: CUMBERLAND PUBLIC LIBRARY | E184: Deputy/Associate/Assistant Director | F184: 1 | G184: Assistant Director/Technology Coordinator | H184: =IF(J184>0,(J184/(K184*52))," ") -> $33.33 | I184: Y | J184: $60,658 | K184: 35 | L184: Yes
A185: 22 | B185: NORTH KINGSTOWN | C185: DPL | D185: DAVISVILLE FREE LIBRARY | E185: Deputy/Associate/Assistant Director | F185: 1 | G185: Asst. Director | H185: $14.00 | I185: N | K185: 18 | L185: Yes
A186: 30 | B186: SMITHFIELD | C186: ESM | D186: EAST SMITHFIELD PUBLIC LIBRARY | E186: Deputy/Associate/Assistant Director | F186: 1 | G186: Assistant Director | H186: $36.64 | I186: N | J186: $70,495 | K186: 37 | L186: Yes
A187: 30 | B187: SMITHFIELD | C187: GVL | D187: GREENVILLE PUBLIC LIBRARY | E187: Deputy/Associate/Assistant Director | F187: 1 | G187: Assistant Director | H187: =IF(J187>0,(J187/(K187*52))," ") -> $33.95 | I187: =IF(J187>0,"Y"," N") -> Y | J187: $61,789 | K187: 35 | L187: Yes
A188: 3 | B188: BURRILLVILLE | C188: BUR | D188: JESSE M. SMITH MEMORIAL LIBRARY | E188: Deputy/Associate/Assistant Director | F188: 1 | G188: Assistant Director | H188: $26.43 | I188: N | K188: 35 | L188: Yes
A189: 13 | B189: HOPKINTON | C189: LAN | D189: LANGWORTHY PUBLIC LIBRARY | E189: Deputy/Associate/Assistant Director | F189: 1 | G189: Assistant Director | H189: $19.00 | I189: N | K189: 12 | L189: Yes
A190: 16 | B190: LINCOLN | C190: LIN | D190: LINCOLN PUBLIC LIBRARY | E190: Deputy/Associate/Assistant Director | F190: 1 | G190: Assistant Director | H190: =IF(J190>0,(J190/(K190*52))," ") -> $27.93 | I190: Y | J190: $50,840 | K190: 35 | L190: Yes
A191: 15 | B191: JOHNSTON | C191: JOH | D191: MARIAN J. MOHR MEMORIAL LIBRARY | E191: Deputy/Associate/Assistant Director | F191: 1 | G191: Associate Director | H191: $24.73 | I191: Y | J191: $45,000 | K191: 35 | L191: Yes
A192: 19 | B192: NARRAGANSETT | C192: NAR | D192: MAURY LOONTJENS MEMORIAL LIBRARY (NARRAGANSETT) | E192: Deputy/Associate/Assistant Director | F192: 1 | G192: Childen\'s Assistant | H192: $16.60 | I192: Y | J192: $30,212 | K192: 35 | L192: No
A193: 19 | B193: NARRAGANSETT | C193: NAR | D193: MAURY LOONTJENS MEMORIAL LIBRARY (NARRAGANSETT) | E193: Deputy/Associate/Assistant Director | F193: 1 | G193: Adult Services | H193: $25.55 | I193: Y | J193: $53,144 | K193: 40 | L193: Yes
A194: 21 | B194: NEWPORT | C194: NPT | D194: NEWPORT PUBLIC LIBRARY | E194: Deputy/Associate/Assistant Director | F194: 1 | G194: Assistant Director/Head of Collection Management | H194: $37.33 | I194: Y | J194: $67,941 | K194: 35 | L194: Yes
A195: 22 | B195: NORTH KINGSTOWN | C195: NKI | D195: NORTH KINGSTOWN FREE LIBRARY | E195: Deputy/Associate/Assistant Director | F195: 1 | G195: Deputy Director | H195: $40.18 | I195: Y | J195: $73,121 | K195: 35 | L195: Yes
A196: 22 | B196: NORTH KINGSTOWN | C196: NKI | D196: NORTH KINGSTOWN FREE LIBRARY | E196: Deputy/Associate/Assistant Director | F196: 1 | G196: Fiction & Readers\' Advisor Coordinator | H196: $26.59 | I196: Y | J196: $48,391 | K196: 35 | L196: Yes
A197: 23 | B197: NORTH PROVIDENCE | C197: NPR | D197: NORTH PROVIDENCE UNION FREE | E197: Deputy/Associate/Assistant Director | F197: 1 | G197: Information Technology | H197: $22.64 | I197: =IF(J197>0,"Y"," N") -> Y | J197: $41,199 | K197: 35 | L197: No
A198: 3 | B198: PASCOAG | C198: PAS | D198: PASCOAG FREE PUBLIC LIBRARY | E198: Deputy/Associate/Assistant Director | F198: 1 | G198: Library Manager | H198: $15.06 | I198: N | J198: $20,361 | K198: 26 | L198: No
A199: 25 | B199: PAWTUCKET | C199: PAW | D199: PAWTUCKET PUBLIC LIBRARY | E199: Deputy/Associate/Assistant Director | F199: 1 | G199: Assistant Director | H199: $35.68 | I199: =IF(J199>0,"Y"," N") -> Y | J199: $64,938 | K199: 35 | L199: Yes
A200: 27 | B200: PROVIDENCE | C200: PRO | D200: PROVIDENCE PUBLIC LIBRARY | E200: Deputy/Associate/Assistant Director | F200: 1 | G200: Assistant Director | H200: =IF(J200>0,(J200/(K200*52))," ") -> $46.90 | I200: Y | J200: $91,455 | K200: 37.5 | L200: Yes
... 544 more rows

Sheet positionsSummaryLibraries
A1: File # | B1: City | C1: Lib Code | D1: Location | E1: Job Categories | F1: Number of Staff | G1: Hourly Rate (average) | H1: Annual Salary (average) | I1: Hours Worked per Week (average) | J1: Total MLS | K1: Total MLS Hours | L1: Average MLS Hours
A2: 1 | B2: BARRINGTON | C2: BAR | D2: BARRINGTON PUBLIC LIBRARY | E2: 16 | F2: 34 | G2: $11.76 | H2: $53,108 | I2: 30.7 | J2: =salaries!K2 -> 6 | K2: =salaries!L2 -> 210.0 | L2: =K2/J2 -> 35.0
A3: 2 | B3: BRISTOL | C3: BRI | D3: ROGERS FREE LIBRARY | E3: 9 | F3: 23 | G3: $11.87 | H3: $41,700 | I3: 31.0 | J3: =salaries!K19 -> 4 | K3: =salaries!L19 -> 105.0 | L3: =K3/J3 -> 26.3
A4: 3 | B4: BURRILLVILLE | C4: BUR | D4: JESSE M. SMITH MEMORIAL LIBRARY | E4: 18 | F4: 19 | G4: $17.65 | H4: $0 | I4: 25.5 | J4: =salaries!K29 -> 4 | K4: =salaries!L29 -> 124.0 | L4: 31.0
A5: 3 | B5: PASCOAG | C5: PAS | D5: PASCOAG FREE PUBLIC LIBRARY | E5: 8 | F5: 8 | G5: $11.71 | H5: $8,559 | I5: 12.4 | J5: =salaries!K48 -> 1 | K5: =salaries!L48 -> 26.0 | L5: 26.0
A6: 4 | B6: CENTRAL FALLS | C6: CFA | D6: CENTRAL FALLS FREE PUBLIC LIBRARY | E6: 3 | F6: 3 | G6: $9.00 | H6: $50,000 | I6: 29.0 | J6: =salaries!K57 -> 1 | K6: =salaries!L57 -> 40.0 | L6: 40.0
A7: 5 | B7: CHARLESTOWN | C7: CHA | D7: CROSS' MILLS PUBLIC LIBRARY | E7: 13 | F7: 13 | G7: $13.97 | H7: $54,064 | I7: 16.4 | J7: =salaries!K61 -> 4 | K7: =salaries!L61 -> 111.5 | L7: 27.9
A8: 6 | B8: COVENTRY | C8: COV | D8: COVENTRY PUBLIC LIBRARY | E8: 16 | F8: 31 | G8: $15.08 | H8: $44,517 | I8: 24.3 | J8: =salaries!K75 -> 13 | K8: =salaries!L75 -> 228.0 | L8: 17.5
A9: 7 | B9: CRANSTON | C9: CRA | D9: CRANSTON PUBLIC LIBRARY | E9: 64 | F9: 93 | G9: $11.05 | H9: $50,767 | I9: 21.1 | J9: =salaries!K92 -> 24 | K9: =salaries!L92 -> 590.5 | L9: 24.6
A10: 8 | B10: CUMBERLAND | C10: CUM | D10: CUMBERLAND PUBLIC LIBRARY | E10: 29 | F10: 35 | G10: $16.38 | H10: $56,625 | I10: 23.4 | J10: =salaries!K157 -> 8 | K10: =salaries!L157 -> 257.5 | L10: 32.2
A11: 9 | B11: EAST GREENWICH | C11: EGR | D11: EAST GREENWICH FREE LIBRARY | E11: 16 | F11: 17 | G11: $20.73 | H11: $0 | I11: 22.8 | J11: =salaries!K187 -> 6 | K11: =salaries!L187 -> 153.0 | L11: 25.5
A12: 10 | B12: EAST PROVIDENCE | C12: EPL | D12: EAST PROVIDENCE PUBLIC LIBRARY | E12: 16 | F12: 24 | H12: $52,127 | I12: 33.8 | J12: =salaries!K203 -> 11 | K12: =salaries!L203 -> 385.0 | L12: 35.0
A13: 10.5 | B13: EXETER | C13: EXE | D13: EXETER PUBLIC LIBRARY | E13: 6 | F13: 7 | G13: $12.47 | H13: $59,056 | I13: 18.8 | J13: =salaries!K220 -> 1 | K13: =salaries!L220 -> 35.0 | L13: 35.0
A14: 11 | B14: FOSTER | C14: FOS | D14: LIBRARIES OF FOSTER | E14: 10 | F14: 10 | G14: $9.94 | H14: $4,615 | I14: 16.0 | J14: =salaries!K227 -> 1 | K14: =salaries!L227 -> 40.0 | L14: 40.0
A15: 12 | B15: GLOCESTER | C15: GLO | D15: GLOCESTER MANTON FREE PUBLIC LIBRARY | E15: 7 | F15: 7 | G15: $11.92 | H15: $25,831 | I15: 19.9 | J15: =salaries!K238 -> 1 | K15: =salaries!L238 -> 40.0 | L15: 40.0
A16: 12 | B16: GLOCESTER | C16: HAR | D16: HARMONY LIBRARY | E16: 9 | F16: 10 | G16: $14.25 | H16: $23,618 | I16: 17.6 | J16: =salaries!K246 -> 3 | K16: =salaries!L246 -> 74.0 | L16: 24.7
A17: 13 | B17: HOPKINTON | C17: ASH | D17: ASHAWAY FREE LIBRARY | E17: 6 | F17: 8 | G17: $16.89 | I17: 9.3 | J17: =salaries!K256 -> 2 | K17: =salaries!L256 -> 38.0 | L17: 19.0
A18: 13 | B18: HOPKINTON | C18: LAN | D18: LANGWORTHY PUBLIC LIBRARY | E18: 6 | F18: 10 | G18: $13.42 | I18: 13.5 | J18: =salaries!K263 -> 3 | K18: =salaries!L263 -> 36.0 | L18: 12.0
A19: 14 | B19: JAMESTOWN | C19: JAM | D19: JAMESTOWN PHILOMENIAN LIBRARY | E19: 11 | F19: 11 | G19: $13.91 | H19: $69,921 | I19: 25.5 | J19: =salaries!K270 -> 3 | K19: =salaries!L270 -> 120.0 | L19: 40.0
A20: 15 | B20: JOHNSTON | C20: JOH | D20: MARIAN J. MOHR MEMORIAL LIBRARY | E20: 18 | F20: 18 | G20: $13.04 | H20: $47,000 | I20: 23.8 | J20: =salaries!K282 -> 7 | K20: =salaries!L282 -> 165.0 | L20: 23.6
A21: 16 | B21: LINCOLN | C21: LIN | D21: LINCOLN PUBLIC LIBRARY | E21: 20 | F21: 22 | G21: $16.23 | H21: $56,704 | I21: 24.3 | J21: =salaries!K301 -> 8 | K21: =salaries!L301 -> 215.0 | L21: 26.9
A22: 17 | B22: LITTLE COMPTON | C22: LCO | D22: BROWNELL LIBRARY, HOME OF LITTLE COMPTON | E22: 4 | F22: 4 | G22: $18.03 | I22: 29.9 | J22: =salaries!K322 -> 1 | K22: =salaries!L322 -> 35.0 | L22: 35.0
A23: 18 | B23: MIDDLETOWN | C23: MID | D23: MIDDLETOWN PUBLIC LIBRARY | E23: 8 | F23: 14 | G23: $21.12 | I23: 31.1 | J23: =salaries!K327 -> 3 | K23: =salaries!L327 -> 105.0 | L23: 35.0
A24: 19 | B24: NARRAGANSETT | C24: NAR | D24: MAURY LOONTJENS MEMORIAL LIBRARY (NARRAGANSETT) | E24: 17 | F24: 18 | G24: $12.25 | H24: $49,031 | I24: 23.6 | J24: =salaries!K335 -> 5 | K24: =salaries!L335 -> 161.0 | L24: 32.2
A25: 20 | B25: NEW SHOREHAM | C25: NSH | D25: ISLAND FREE LIBRARY | E25: 5 | F25: 5 | G25: $15.93 | H25: $59,808 | I25: 38.4 | J25: =salaries!K353 -> 1 | K25: =salaries!L353 -> 40.0 | L25: 40.0
A26: 21 | B26: NEWPORT | C26: NPT | D26: NEWPORT PUBLIC LIBRARY | E26: 29 | F26: 37 | G26: $18.20 | H26: $47,505 | I26: 33.1 | J26: =salaries!K359 -> 10 | K26: =salaries!L359 -> 301.0 | L26: 30.1
A27: 22 | B27: NORTH KINGSTOWN | C27: DPL | D27: DAVISVILLE FREE LIBRARY | E27: 3 | F27: 4 | G27: $17.76 | I27: 13.2 | J27: =salaries!K389 -> 2 | K27: =salaries!L389 -> 35.0 | L27: 17.5
A28: 22 | B28: NORTH KINGSTOWN | C28: NKI | D28: NORTH KINGSTOWN FREE LIBRARY | E28: 18 | F28: 21 | G28: $16.97 | H28: $48,918 | I28: 32.1 | J28: =salaries!K393 -> 8 | K28: =salaries!L393 -> 275.0 | L28: 34.4
A29: 22 | B29: NORTH KINGSTOWN | C29: WIL | D29: WILLETT FREE LIBRARY | E29: 4 | F29: 4 | G29: $13.84 | H29: $10,763 | I29: 12.9 | J29: =salaries!K412 -> 2 | K29: =salaries!L412 -> 36.5 | L29: 18.3
A30: 23 | B30: NORTH PROVIDENCE | C30: NPR | D30: NORTH PROVIDENCE UNION FREE | E30: 26 | F30: 29 | G30: $10.83 | H30: $42,671 | I30: 23.2 | J30: =salaries!K416 -> 7 | K30: =salaries!L416 -> 209.0 | L30: 29.9
A31: 24 | B31: NORTH SMITHFIELD | C31: NSM | D31: NORTH SMITHFIELD PUBLIC LIBRARY | E31: 9 | F31: 9 | G31: $12.46 | H31: $47,603 | I31: 24.8 | J31: =salaries!K443 -> 3 | K31: =salaries!L443 -> 110.0 | L31: 36.7
A32: 25 | B32: PAWTUCKET | C32: PAW | D32: PAWTUCKET PUBLIC LIBRARY | E32: 22 | F32: 31 | G32: $21.79 | H32: $37,285 | I32: 31.0 | J32: =salaries!K453 -> 11 | K32: =salaries!L453 -> 264.0 | L32: 24.0
A33: 26 | B33: PORTSMOUTH | C33: POR | D33: PORTSMOUTH FREE PUBLIC LIBRARY | E33: 14 | F33: 21 | G33: $15.37 | H33: $46,205 | I33: 26.2 | J33: =salaries!K476 -> 3 | K33: =salaries!L476 -> 105.0 | L33: 35.0
A34: 27 | B34: PROVIDENCE | C34: PCL | D34: PROVIDENCE COMMUNITY LIBRARY | E34: 25 | F34: 68 | H34: $52,382 | I34: 37.6 | J34: =salaries!K491 -> 21 | K34: =salaries!L491 -> 257.0 | L34: 12.2
A35: 27 | B35: PROVIDENCE | C35: PRO | D35: PROVIDENCE PUBLIC LIBRARY | E35: 53 | F35: 61 | G35: $0.00 | H35: $42,693 | I35: 28.4 | J35: =salaries!K517 -> 18 | K35: =salaries!L517 -> 517.5 | L35: 28.8
A36: 28 | B36: RICHMOND | C36: CLA | D36: CLARK MEMORIAL LIBRARY | E36: 7 | F36: 7 | G36: $14.97 | H36: $33,293 | I36: 13.1 | J36: =salaries!K571 -> 1 | K36: =salaries!L571 -> 25.0 | L36: 25.0
A37: 29 | B37: SCITUATE | C37: HPE | D37: HOPE LIBRARY | E37: 12 | F37: 12 | G37: $14.39 | I37: 16.4 | J37: =salaries!K579 -> 3 | K37: =salaries!L579 -> 76.5 | L37: 25.5
A38: 29 | B38: SCITUATE | C38: SCI | D38: NORTH SCITUATE PUBLIC LIBRARY | E38: 13 | F38: 13 | G38: $14.30 | H38: $59,000 | I38: 16.2 | J38: =salaries!K592 -> 5 | K38: =salaries!L592 -> 84.0 | L38: 16.8
A39: 30 | B39: SMITHFIELD | C39: ESM | D39: EAST SMITHFIELD PUBLIC LIBRARY | E39: 16 | F39: 16 | G39: $19.00 | H39: $25,004 | I39: 23.6 | J39: =salaries!K606 -> 3 | K39: =salaries!L606 -> 92.0 | L39: 30.7
A40: 30 | B40: SMITHFIELD | C40: GVL | D40: GREENVILLE PUBLIC LIBRARY | E40: 20 | F40: 20 | H40: $25,796 | I40: 22.6 | J40: =salaries!K623 -> 10 | K40: =salaries!L623 -> 277.0 | L40: 27.7
A41: 31 | B41: SOUTH KINGSTOWN | C41: SKI | D41: SOUTH KINGSTOWN PUBLIC LIBRARY | E41: 27 | F41: 32 | G41: $14.98 | H41: $50,715 | I41: 19.7 | J41: =salaries!K644 -> 11 | K41: =salaries!L644 -> 233.0 | L41: 21.2
A42: 32 | B42: TIVERTON | C42: TIV | D42: ESSEX PUBLIC LIBRARY | E42: 15 | F42: 17 | G42: $18.35 | H42: $65,793 | I42: 25.2 | J42: =salaries!K672 -> 3 | K42: =salaries!L672 -> 105.0 | L42: 35.0
A43: 33 | B43: WARREN | C43: WRR | D43: GEORGE HAIL FREE LIBRARY | E43: 6 | F43: 8 | G43: $14.89 | H43: $51,854 | I43: 25.8 | J43: =salaries!K688 -> 2 | K43: =salaries!L688 -> 68.0 | L43: 34.0
A44: 34 | B44: WARWICK | C44: WPO | D44: PONTIAC FREE LIBRARY | E44: 3 | F44: 5 | G44: $10.00 | H44: $20,280 | I44: 17.7 | J44: =salaries!K695 -> 1 | K44: =salaries!L695 -> 25.0 | L44: 25.0
A45: 34 | B45: WARWICK | C45: WAR | D45: WARWICK PUBLIC LIBRARY | E45: 26 | F45: 50 | G45: $16.19 | H45: $52,493 | I45: 25.4 | J45: =salaries!K699 -> 16 | K45: =salaries!L699 -> 263.0 | L45: 16.4
A46: 35 | B46: WEST GREENWICH | C46: WGR | D46: LOUTTIT MEMORIAL LIBRARY | E46: 6 | F46: 6 | G46: $16.38 | I46: 19.2 | J46: =salaries!K726 -> 2 | K46: =salaries!L726 -> 46.0 | L46: 23.0
A47: 36 | B47: WEST WARWICK | C47: WWA | D47: WEST WARWICK PUBLIC LIBRARY | E47: 18 | F47: 19 | G47: $13.57 | H47: $38,202 | I47: 26.8 | J47: =salaries!K733 -> 6 | K47: =salaries!L733 -> 210.0 | L47: 35.0
A48: 37 | B48: WESTERLY | C48: WES | D48: WESTERLY PUBLIC LIBRARY | E48: 18 | F48: 42 | G48: $0.00 | H48: $60,075 | I48: 40.2 | J48: =salaries!K752 -> 13 | K48: =salaries!L752 -> 321.0 | L48: 24.7
A49: 38 | B49: WOONSOCKET | C49: WNS | D49: WOONSOCKET HARRIS PUBLIC LIBRARY | E49: 20 | F49: 24 | G49: $11.98 | H49: $37,068 | I49: 26.9 | J49: =salaries!K771 -> 7 | K49: =salaries!L771 -> 220.0 | L49: 31.4

Sheet positionsSummaryState
A1: Title | B1: Total in category | C1: Average Salary | D1: Total Positions | E1: MLS | F1: non-MLS | G1: Average Salary | H1: Median Salary | I1: Minimum Salary | J1: Maximum Salary
A2: Aide/Page | B2: 47 | C2: $10.26 | D2: 86 | E2: 2 | F2: 84 | G2: $10.26 | H2: $9.00 | I2: $8.10 | J2: $21.65
A3: Branch Librarian | B3: 11 | C3: $25.92 | D3: 18 | E3: 16 | F3: 2 | G3: $25.92 | H3: $27.90 | I3: $15.00 | J3: $36.03
A4: Buildings/Ground Staff | B4: 56 | C4: $17.48 | D4: 65 | E4: 0 | F4: 65 | G4: $17.48 | H4: $16.66 | I4: $9.00 | J4: $39.75
A5: Childrens and/or Young Adult Services Librarian | B5: 63 | C5: $22.55 | D5: 70 | E5: 59 | F5: 11 | G5: $22.55 | H5: $22.60 | I5: $13.35 | J5: $36.03
A6: Deputy/Associate/Assistant Director | B6: 25 | C6: $29.17 | D6: 25 | E6: 20 | F6: 5 | G6: $29.17 | H6: $27.93 | I6: $14.00 | J6: $46.90
A7: Director | B7: 47 | C7: $34.71 | D7: 47 | E7: 45 | F7: 2 | G7: $34.71 | H7: $33.27 | I7: $15.06 | J7: $62.77
A8: Library Associate | B8: 172 | C8: $15.44 | D8: 285 | E8: 3 | F8: 282 | G8: $15.44 | H8: $14.59 | I8: $9.00 | J8: $33.33
A9: Library Technician | B9: 115 | C9: $12.88 | D9: 164 | E9: 4 | F9: 160 | G9: $12.88 | H9: $11.55 | I9: $9.00 | J9: $30.27
A10: Manager/Department Head | B10: 95 | C10: $27.48 | D10: 103 | E10: 55 | F10: 48 | G10: $27.48 | H10: $28.30 | I10: $9.00 | J10: $47.69
A11: Office Staff | B11: 30 | C11: $20.19 | D11: 31 | E11: 0 | F11: 31 | G11: $20.19 | H11: $19.24 | I11: $11.25 | J11: $31.45
A12: Reference/Information Librarian | B12: 59 | C12: $21.74 | D12: 80 | E12: 73 | F12: 7 | G12: $21.74 | H12: $22.05 | I12: $9.00 | J12: $42.29
A13: Technical Services Librarian | B13: 22 | C13: $19.56 | D13: 24 | E13: 10 | F13: 14 | G13: $19.56 | H13: $20.66 | I13: $9.97 | J13: $29.70
A15: Total Positions | B15: =SUM(B2:B13) -> 742 | D15: =SUM(D2:D13) -> 998 | E15: =SUM(E2:E13) -> 287 | F15: 711
A17: Definitions
A18: Total in Category: | B18: Number of positions category at libraries across the state. There may be differently titled positions in the category.
A19: Total Positions | B19: Number of individuals filling the positions.
A20: MLS | B20: Number of MLS Librarians holding positions.
A21: non-MLS | B21: Number of non-MLS staff holding positions.
